{"text_format":"1","workbook":"xlsx","n_sheets":6,"sheets":["報告書 (記入例)","報告書","個人情報の取扱について","学校一覧","【統廃合】変更履歴","プルダウン用データ"],"not_rendered":{"charts":0,"images":4,"macros":1,"external_links":0,"defined_names":33,"comments":0,"pivot_tables":0},"unopened":[],"bounds":{"document_bytes":16777216,"sheet_cells":100000,"rows_first":2000,"rows_last":500,"rows_between":2000,"halvings":0,"cell_chars":16384,"cell_head_chars":4096},"cells_cut":0,"cells_raw":0,"read":"whole","date_system":"1900"}

{"sheet":"報告書 (記入例)","index":0,"n_rows":57,"n_cols":64,"rows_kept":57,"cut":false,"hidden":false,"merged":[[2,35,2,39],[2,40,2,49],[2,57,3,64],[4,35,4,39],[4,40,4,49],[4,51,4,53],[4,54,4,56],[4,60,4,63],[13,55,13,63],[6,35,6,63],[9,45,9,63],[10,35,29,35],[10,36,13,40],[10,41,10,42],[10,43,10,52],[10,53,12,54],[10,55,12,63],[11,41,11,42],[11,43,11,52],[13,41,13,46],[13,47,13,48],[13,49,13,50],[13,51,13,52],[13,53,13,54],[17,36,19,40],[17,41,17,63],[18,41,18,63],[19,41,19,63],[20,36,20,40],[20,41,20,63],[16,36,16,40],[14,36,14,40],[14,41,14,43],[14,44,14,45],[14,47,14,48],[14,50,14,51],[14,53,14,55],[14,57,14,58],[14,59,14,63],[15,36,15,40],[15,41,15,49],[15,50,15,62],[23,36,23,40],[23,41,23,43],[23,44,23,48],[23,49,23,51],[23,52,23,55],[23,56,23,63],[24,36,24,40],[24,41,24,62],[21,36,21,40],[21,41,21,63],[22,36,22,40],[22,41,22,51],[22,52,22,55],[22,56,22,63],[27,36,28,40],[27,42,27,43],[27,45,27,46],[27,47,27,63],[28,41,28,63],[25,36,26,40],[25,41,25,42],[25,43,25,51],[25,52,26,55],[25,56,26,60],[25,61,26,62],[48,6,49,25],[50,9,50,22],[44,36,44,37],[44,38,44,39],[44,45,44,46],[31,35,44,35],[29,36,29,40],[29,44,29,45],[29,47,29,48],[38,40,38,49],[7,44,8,50],[12,41,12,52],[49,50,49,63],[45,34,45,64],[48,50,48,53],[54,35,56,51],[44,47,44,52],[44,53,44,56],[44,57,44,63],[38,56,38,57],[38,59,38,60],[42,36,43,37],[42,38,43,43],[42,45,42,49],[42,50,43,51],[42,52,43,63],[43,45,43,49],[29,50,29,51],[29,53,29,63],[33,56,34,63],[36,55,37,63],[38,53,38,54],[25,63,26,63],[26,41,26,51]]}
[]
[]
[null,null,null,null,null,null,null,null,null,null,null,null,null,null,null,null,null,null,null,null,null,null,null,null,null,null,null,null,null,null,null,null,null,null,null," 県・市町村/国立",null,null,null,null,"○○市立",null,null,null,null,null,null,null,null,null,null,null,null,null,null,null,null,"FAX　0120-937-743"]
[]
[null,null,null,null,null,null,null,null,null,null,null,null,null,null,null,null,null,null,null,null,null,null,null,null,null,null,null,null,null,null,null,null,null,null,null," 学校名",null,null,null,null,"XX小学校",null,null,null,null,null,null,null,null,null,null,"保険会社使用欄",null,null,{"$f":"IFERROR(VLOOKUP(AO5,学校一覧!$D$2:$I$278,7,FALSE),\"\")","v":""},null,null,null,null,null,"FAX用"]
[]
[null,null,null,null,null,null,null,null,null,null,null,null,null,null,null,null,null,null,null,null,null,null,null,null,null,null,null,null,null,null,null,null,null,null,null,"　事故報告書　兼　事故証明書（傷害事故用）"]
[null,null,null,null,null,null,null,null,null,null,null,null,null,null,null,null,null,null,null,null,null,null,null,null,null,null,null,null,null,null,null,null,null,null,null,null,null,null,null,null,null,null,null,null,"※対象の保険証券に☑をお願いします",null,null,null,null,null,null,null,null,"証券番号24S0146209　（学校契約団体傷害保険）"]
[null,null,null,null,null,null,null,null,null,null,null,null,null,null,null,null,null,null,null,null,null,null,null,null,null,null,null,null,null,null,null,null,null,null,null,"AIG損害保険株式会社　　宛　　　　　　　　　　　　　　　　",null,null,null,null,null,null,null,null,null,null,null,null,null,null,null,null,null,"証券番号24S0146217　（PTA団体傷害保険）"]
[null,null,null,null,null,null,null,null,null,null,null,null,null,null,null,null,null,null,null,null,null,null,null,null,null,null,null,null,null,null,null,null,null,null,null,null,null,null,null,null,null,null,null,null,null,"＊印の欄は該当するものに○印を記入してください。"]
[null,null,null,null,null,null,null,null,null,null,null,null,null,null,null,null,null,null,null,null,null,null,null,null,null,null,null,null,null,null,null,null,null,null,null,"保　護　者 ・ P　T　A　会　員　等　記　入　欄","被保険者のお名前\n（ケガをした人）",null,null,null,null,"（フリガナ）",null,"　　　      エイアイ　　　　ハナコ",null,null,null,null,null,null,null,null,null,"区分＊",null,"児童生徒　・　保護者　・　教職員　\nPTA会員の同居の親族　・　PTAが事前に認めた方　"]
[null,null,null,null,null,null,null,null,null,null,null,null,null,null,null,null,null,null,null,null,null,null,null,null,null,null,null,null,null,null,null,null,null,null,null,null,null,null,null,null,null,"氏名",null,"       永合　　花子"]
[null,null,null,null,null,null,null,null,null,null,null,null,null,null,null,null,null,null,null,null,null,null,null,null,null,null,null,null,null,null,null,null,null,null,null,null,null,null,null,null,null,"(生年月日）西暦 20xx年　xx月　xx日（　　　x 歳）"]
[null,null,null,null,null,null,null,null,null,null,null,null,null,null,null,null,null,null,null,null,null,null,null,null,null,null,null,null,null,null,null,null,null,null,null,null,null,null,null,null,null,"（児童生徒の場合）",null,null,null,null,null,"第",null,"○",null,"学年",null,"△",null,"組　　  　に在学 　　*受傷時点"]
[null,null,null,null,null,null,null,null,null,null,null,null,null,null,null,null,null,null,null,null,null,null,null,null,null,null,null,null,null,null,null,null,null,null,null,null,"事故発生日時",null,null,null,null,20,null,null,"XX",null,"年",4,null,"月",5,null,"日",10,null,null,"時",30,null,"分頃"]
[null,null,null,null,null,null,null,null,null,null,null,null,null,null,null,null,null,null,null,null,null,null,null,null,null,null,null,null,null,null,null,null,null,null,null,null,"事故発生場所＊",null,null,null,null,"自宅　　・　　学校　　・　　その他（",null,null,null,null,null,null,null,null,"自宅近くの公園",null,null,null,null,null,null,null,null,null,null,null,null,"）"]
[null,null,null,null,null,null,null,null,null,null,null,null,null,null,null,null,null,null,null,null,null,null,null,null,null,null,null,null,null,null,null,null,null,null,null,null,"事故の原因＊",null,null,null,null,"運動中（スポ少・部活動）・  家庭生活中  ・  登下校中  ・  PTA活動中  ・ その他（",null,null,null,null,null,null,null,null,null,null,null,null,null,null,null,null,null,null,null,null,null,"）"]
[null,null,null,null,null,null,null,null,null,null,null,null,null,null,null,null,null,null,null,null,null,null,null,null,null,null,null,null,null,null,null,null,null,null,null,null,"事故の状況＊",null,null,null,null,"転倒　　・　　転落　　・　　衝突　　・　　熱中症　　・　　食中毒　　・　　落下物、飛来物による事故"]
[null,null,null,null,null,null,null,null,null,null,null,null,null,null,null,null,null,null,null,null,null,null,null,null,null,null,null,null,null,null,null,null,null,null,null,null,null,null,null,null,null,"その他　⇒　具体的な状況をご記入ください。"]
[null,null,null,null,null,null,null,null,null,null,null,null,null,null,null,null,null,null,null,null,null,null,null,null,null,null,null,null,null,null,null,null,null,null,null,null,null,null,null,null,null,"友人とサッカーをして遊んでいる最中に、ボールの奪い合いで友人と衝突して転倒し、右手首を骨折した。"]
[null,null,null,null,null,null,null,null,null,null,null,null,null,null,null,null,null,null,null,null,null,null,null,null,null,null,null,null,null,null,null,null,null,null,null,null,"ケガをした箇所＊",null,null,null,null,"頭部　・　顔面　・　首部　・　腰、背、胸　・　脚、足首　・　腕、手首　・　手、足の甲、指　・　その他（　　　　　　　　　　）"]
[null,null,null,null,null,null,null,null,null,null,null,null,null,null,null,null,null,null,null,null,null,null,null,null,null,null,null,null,null,null,null,null,null,null,null,null,"ケガの状態＊",null,null,null,null,"骨折、脱臼　・　打撲、捻挫　・　切断、不全切断　・　擦り傷、切り傷　・　断裂　・　火傷　・　その他（　　　　　　　　　　）"]
[null,null,null,null,null,null,null,null,null,null,null,null,null,null,null,null,null,null,null,null,null,null,null,null,null,null,null,null,null,null,null,null,null,null,null,null,"ケガの名前",null,null,null,null,"右とう骨骨折",null,null,null,null,null,null,null,null,null,null,"治療の状況＊",null,null,null,"治療中　・　治癒　・　治療中止\n　　　　　⇩"]
[null,null,null,null,null,null,null,null,null,null,null,null,null,null,null,null,null,null,null,null,null,null,null,null,null,null,null,null,null,null,null,null,null,null,null,null,"入院について＊",null,null,null,null,"あり　・　なし",null,null,"手術について＊",null,null,null,null,"あり　・　なし",null,null,"治療最終日",null,null,null,"20　xx　年　　5　月　10　日"]
[null,null,null,null,null,null,null,null,null,null,null,null,null,null,null,null,null,null,null,null,null,null,null,null,null,null,null,null,null,null,null,null,null,null,null,null,"過去のご請求歴",null,null,null,null,"　　　過去の請求はありません　　　・　　　過去の請求がある　（　　　　　　　　　　　　年　　　　　　　　　　　月頃",null,null,null,null,null,null,null,null,null,null,null,null,null,null,null,null,null,null,null,null,null,"）"]
[null,null,null,null,null,null,null,null,null,null,null,null,null,null,null,null,null,null,null,null,null,null,null,null,null,null,null,null,null,null,null,null,null,null,null,null,"保護者氏名",null,null,null,null,"（フリガナ）",null,"エイアイ　　イチロウ",null,null,null,null,null,null,null,null,"被保険者との\n関係＊",null,null,null,"本人・親権者・その他（",null,null,null,null,null,null,"）"]
[null,null,null,null,null,null,null,null,null,null,null,null,null,null,null,null,null,null,null,null,null,null,null,null,null,null,null,null,null,null,null,null,null,null,null,null,null,null,null,null,null,"          永合　一郎"]
[null,null,null,null,null,null,null,null,null,null,null,null,null,null,null,null,null,null,null,null,null,null,null,null,null,null,null,null,null,null,null,null,null,null,null,null,"住所",null,null,null,null,"〒  ","01X",null,"-","XXXX"]
[null,null,null,null,null,null,null,null,null,null,null,null,null,null,null,null,null,null,null,null,null,null,null,null,null,null,null,null,null,null,null,null,null,null,null,null,null,null,null,null,null,"　　　　　秋田県○○市××町1-2-3"]
[null,null,null,null,null,null,null,null,null,null,null,null,null,null,null,null,null,null,null,null,null,null,null,null,null,null,null,null,null,null,null,null,null,null,null,null,"日中連絡先",null,null,null,null,"電話番号",null,"（","090",null,"-","XXXX",null,"-","XXXX",null,"）","携帯電話の場合、AIG損保からのSMSの送信に同意する。"]
[]
[null,null,null,null,null,null,null,null,null,null,null,null,null,null,null,null,null,null,null,null,null,null,null,null,null,null,null,null,null,null,null,null,null,null,null,"学　校　・　P　T　A　記　入　欄","上記の被保険者は"]
[null,null,null,null,null,null,null,null,null,null,null,null,null,null,null,null,null,null,null,null,null,null,null,null,null,null,null,null,null,null,null,null,null,null,null,null,"（チェック欄A）"]
[null,null,null,null,null,null,null,null,null,null,null,null,null,null,null,null,null,null,null,null,null,null,null,null,null,null,null,null,null,null,null,null,null,null,null,null,null,null,"（1）当校に在籍する児童生徒",null,null,null,null,null,null,null,null,null,null,null,null,null,null,null,null,null," であり、上記事故が"]
[null,null,null,null,null,null,null,null,null,null,null,null,null,null,null,null,null,null,null,null,null,null,null,null,null,null,null,null,null,null,null,null,null,null,null,null,null,null,"（2）当PTA会員（教職員・保護者）またはその同居の親族、PTAが事前に認めた方"]
[null,null,null,null,null,null,null,null,null,null,null,null,null,null,null,null,null,null,null,null,null,null,null,null,null,null,null,null,null,null,null,null,null,null,null,null,"（チェック欄B）"]
[null,null,null,null,null,null,null,null,null,null,null,null,null,null,null,null,null,null,null,null,null,null,null,null,null,null,null,null,null,null,null,null,null,null,null,null,null,null,"（1）学校の管理下以外の時",null,null,null,null,null,null,null,null,null,null,null,null,null,null,null,null,"において"]
[null,null,null,null,null,null,null,null,null,null,null,null,null,null,null,null,null,null,null,null,null,null,null,null,null,null,null,null,null,null,null,null,null,null,null,null,null,null,"（2）下記PTA行事（＊）もしくはそれに参加するための自宅との往復途上"]
[null,null,null,null,null,null,null,null,null,null,null,null,null,null,null,null,null,null,null,null,null,null,null,null,null,null,null,null,null,null,null,null,null,null,null,null,null,"＊（行事名",null,null,null,null,null,null,null,null,null,null,null,null,"開催日",null,20,null,null,"年",null,null,"月",null,null,"日）"]
[null,null,null,null,null,null,null,null,null,null,null,null,null,null,null,null,null,null,null,null,null,null,null,null,null,null,null,null,null,null,null,null,null,null,null,null,"（チェック欄C）"]
[null,null,null,null,null,null,null,null,null,null,null,null,null,null,null,null,null,null,null,null,null,null,null,null,null,null,null,null,null,null,null,null,null,null,null,null,null,null,"発生したことを証明します。",null,null,null,null,null,null,"（＊）実際に事故を確認された場合。",null,null,null,null,null,null,null,"　"]
[null,null,null,null,null,null,null,null,null,null,null,null,null,null,null,null,null,null,null,null,null,null,null,null,null,null,null,null,null,null,null,null,null,null,null,null,null,null,"発生したことの報告を受けました。",null,null,null,null,null,null,"（＊）事故があったことの報告のみ受けられた場合。"]
[null,null,null,null,null,null,null,null,null,null,null,null,null,null,null,null,null,null,null,null,null,null,null,null,null,null,null,null,null,null,null,null,null,null,null,null,"（学校名）",null,"XX小学校",null,null,null,null,null,"　　　　　　　　　　　　　　　　　　　　　　　　　　　　　　　　","　　学校長",null,null,null,null,"（氏名）",null,"永合　太郎"]
[null,null,null,null,null,null,null,null,null,null,null,null,null,null,null,null,null,null,null,null,null,null,null,null,null,null,null,null,null,null,null,null,null,null,null,null,null,null,null,null,null,null,null,null,null,"　　PTA会長"]
[null,null,null,null,null,null,null,null,null,null,null,null,null,null,null,null,null,null,null,null,null,null,null,null,null,null,null,null,null,null,null,null,null,null,null,null,"ご記入日",null,"20xx",null,"年",7,"月",15,"日","担当者名",null,"永　合子",null,null,null,null,null,"連絡先電話番号",null,null,null,"（　018　-　XXX　-　XXXX　）"]
[null,null,null,null,null,null,null,null,null,null,null,null,null,null,null,null,null,null,null,null,null,null,null,null,null,null,null,null,null,null,null,null,null,null,"・・・・・・・・・・・・・・・・・・・・・・・・・・・・・・・・・・・・・・・・・・・・・・・・・・・・＜キリトリ線＞・・・・・・・・・・・・・・・・・・・・・・・・・・・・・・・・・・・・・・・・・・・・・・・・・・・・"]
[null,null,null,null,null,null,null,null,null,null,null,null,null,null,null,null,null,null,null,null,null,null,null,null,null,null,null,null,null,null,null,null,null,null,null,"（保護者・被保険者　控え）"]
[null,null,null,null,null,null,"【保険請求に関する窓口】"]
[null,null,null,null,null,null,"AIG損害保険株式会社　こどもサポート",null,null,null,null,null,null,null,null,null,null,null,null,null,null,null,null,null,null,null,null,null,null,null,null,null,null,null,null,null,"証券番号24S0146209　（学校契約団体傷害保険）",null,null,null,null,null,null,null,null,null,null,null,null,null,"（ケガをした日）",null,null,null,20,"XX","年",4,"月",5,"日"]
[null,null,null,null,null,null,null,null,null,null,null,null,null,null,null,null,null,null,null,null,null,null,null,null,null,null,null,null,null,null,null,null,null,null,null,null,"証券番号24S0146217　（PTA団体傷害保険）",null,null,null,null,null,null,null,null,null,null,null,null,null,"（状況）友人とサッカーをして遊んでいる最中に、ボールの奪い合いで"]
[null,null,null,null,null,null,null,null,null,"〒850-0843　長崎県長崎市常盤町1-1　メットライフ生命長崎ビル",null,null,null,null,null,null,null,null,null,null,null,null,null,null,null,null,null,null,null,null,null,null,null,null,null,null,null,null,null,null,null,null,null,null,null,null,null,null,null,null,null,"友人と衝突して転倒し、右手首を骨折した。"]
[null,null,null,null,null,null,null,null,null,null,"TEL：0120-127-590（傷害事故）／ 0120-901-879（賠償事故）",null,null,null,null,null,null,null,null,null,null,null,null,null,null,null,null,null,null,null,null,null,null,null,null,"（お読みください）"]
[null,null,null,null,null,null,null,null,null,null,"FAX：0120-937-743（事故報告書兼事故証明書FAX送信先）",null,null,null,null,null,null,null,null,null,null,null,null,null,null,null,null,null,null,null,null,null,null,null,null,"・AIG損害保険株式会社から電話連絡の際の発信番号は「0120-127-590」となります。"]
[null,null,null,null,null,null,null,null,null,null,null,null,null,null,null,null,null,null,null,null,null,null,null,null,null,null,null,null,null,null,null,null,null,null,null,"・保険金支払い手続きは、学校もしくはPTAから弊社宛てに本書面が到着してからとなります。"]
[null,null,null,null,null,null,null,null,null,null,null,null,null,null,null,null,null,null,null,null,null,null,null,null,null,null,null,null,null,null,null,null,null,null,null,"・なお弊社ではケガに関する保険金請求につきましては、インターネットからの「デジタル保険金請求」でも承っております。ご利用を御希望の場合は本書を学校に提出後、QRコードからアクセスいただき、必要事項を入力してください。"]
[]
[null,null,null,null,null,null,null,null,null,null,null,null,null,null,null,null,null,null,null,null,null,null,null,null,null,null,null,null,null,null,null,null,null,null,null,null,null,null,null,null,null,null,null,null,null,null,null,null,null,null,null,null,null,"デジタル保険金請求はこちら　⇒"]

{"sheet":"報告書","index":1,"n_rows":57,"n_cols":31,"rows_kept":57,"cut":false,"hidden":false,"merged":[[24,8,24,29],[21,8,21,30],[48,17,48,20],[29,20,29,30],[38,20,38,21],[38,23,38,24],[38,26,38,27],[42,17,43,18],[42,19,43,30],[42,5,43,11],[44,5,44,6],[38,7,38,16],[23,19,23,22],[23,23,23,30],[44,24,44,30],[42,12,42,16],[4,21,4,23],[22,23,22,30],[6,2,6,30],[10,2,29,2],[17,3,19,7],[17,8,17,30],[10,8,10,9],[18,8,18,30],[9,12,9,30],[4,7,4,16],[13,20,13,21],[13,22,13,30],[14,26,14,30],[7,12,8,18],[24,3,24,7],[25,30,26,30],[2,7,2,16],[4,18,4,20],[14,3,14,7],[15,3,15,7],[10,3,13,7],[10,10,10,19],[11,8,11,9],[13,14,13,15],[13,16,13,17],[13,18,13,19],[15,8,15,16],[15,17,15,29],[2,24,3,31],[11,10,11,19],[4,27,4,30],[14,24,14,25],[2,2,2,6],[4,2,4,6],[45,1,45,31],[29,3,29,7],[25,3,26,7],[27,3,28,7],[27,14,27,30],[28,8,28,30],[20,3,20,7],[19,8,19,30],[22,3,22,7],[13,8,13,13],[16,3,16,7],[36,22,37,30],[25,8,25,9],[25,23,26,27],[43,12,43,16],[27,9,27,10],[27,12,27,13],[33,23,34,30],[54,2,56,18],[31,2,44,2],[49,17,49,20],[49,21,49,30],[42,3,43,4],[44,12,44,13],[44,3,44,4],[44,20,44,23],[44,14,44,19],[25,28,26,29],[29,11,29,12],[29,14,29,15],[29,17,29,18],[25,19,26,22],[25,10,25,18],[26,8,26,18],[12,8,12,19],[10,20,12,21],[10,22,12,30],[23,3,23,7],[23,8,23,10],[23,11,23,15],[23,16,23,18],[22,19,22,22],[22,8,22,18],[14,8,14,10],[14,11,14,12],[14,14,14,15],[14,17,14,18],[14,20,14,22],[20,8,20,30],[21,3,21,7]]}
[]
[]
[null,null," 県・市町村/国立",null,null,null,null,"--プルダウンでご選択ください--",null,null,null,null,null,null,null,null,null,null,null,null,null,null,null,null,"FAX　0120-937-743"]
[]
[null,null," 学校名",null,null,null,null,null,null,null,null,null,null,null,null,null,null,null,"保険会社使用欄",null,null,{"$f":"IFERROR(VLOOKUP(H5,学校一覧!$D$2:$J$400,7,FALSE),\"\")","v":""},null,null,null,null,null,"FAX用"]
[]
[null,null,"　事故報告書　兼　事故証明書（傷害事故用）"]
[null,null,null,null,null,null,null,null,null,null,null,null,"※対象の保険証券に☑をお願いします",null,null,null,null,null,null,null,"証券番号24S0146209　（学校契約団体傷害保険）"]
[null,null,"AIG損害保険株式会社　　宛　　　　　　　　　　　　　　　　",null,null,null,null,null,null,null,null,null,null,null,null,null,null,null,null,null,"証券番号24S0146217　（PTA団体傷害保険）"]
[null,null,null,null,null,null,null,null,null,null,null,null,"＊印の欄は該当するものに○印を記入してください。"]
[null,null,"保　護　者 ・ P　T　A　会　員　等　記　入　欄","被保険者のお名前\n（ケガをした人）",null,null,null,null,"（フリガナ）",null,null,null,null,null,null,null,null,null,null,null,"区分＊",null,"児童生徒　・　保護者　・　教職員　\nPTA会員の同居の親族　・　PTAが事前に認めた方　"]
[null,null,null,null,null,null,null,null,"氏名"]
[null,null,null,null,null,null,null,null,"(生年月日）西暦20　 　年　　 　月　　　 日（　　　  歳）"]
[null,null,null,null,null,null,null,null,"（児童生徒の場合）",null,null,null,null,null,"第",null,null,null,"学年",null,null,null,"組　　  　に在学 　　*受傷時点"]
[null,null,null,"事故発生日時",null,null,null,null,20,null,null,null,null,"年",null,null,"月",null,null,"日",null,null,null,"時",null,null,"分頃"]
[null,null,null,"事故発生場所＊",null,null,null,null,"自宅　　・　　学校　　・　　その他（",null,null,null,null,null,null,null,null,null,null,null,null,null,null,null,null,null,null,null,null,null,"）"]
[null,null,null,"事故の原因＊",null,null,null,null,"運動中（スポ少・部活動）・  家庭生活中  ・  登下校中  ・  PTA活動中  ・ その他（",null,null,null,null,null,null,null,null,null,null,null,null,null,null,null,null,null,null,null,null,null,"）"]
[null,null,null,"事故の状況＊",null,null,null,null,"転倒　　・　　転落　　・　　衝突　　・　　熱中症　　・　　食中毒　　・　　落下物、飛来物による事故"]
[null,null,null,null,null,null,null,null,"その他　⇒　具体的な状況をご記入ください。"]
[]
[null,null,null,"ケガをした箇所＊",null,null,null,null,"頭部　・　顔面　・　首部　・　腰、背、胸　・　脚、足首　・　腕、手首　・　手、足の甲、指　・　その他（　　　　　　　　　　）"]
[null,null,null,"ケガの状態＊",null,null,null,null,"骨折、脱臼　・　打撲、捻挫　・　切断、不全切断　・　擦り傷、切り傷　・　断裂　・　火傷　・　その他（　　　　　　　　　　）"]
[null,null,null,"ケガの名前",null,null,null,null,null,null,null,null,null,null,null,null,null,null,null,"治療の状況＊",null,null,null,"治療中　・　治癒　・　治療中止\n　　　　　⇩"]
[null,null,null,"入院について＊",null,null,null,null,"あり　・　なし",null,null,"手術について＊",null,null,null,null,"あり　・　なし",null,null,"治療最終日",null,null,null,"20　　　　年　　　　月　　　　日"]
[null,null,null,"過去のご請求歴",null,null,null,null,"　　　過去の請求はありません　　　・　　　過去の請求がある　（　　　　　　　　　　　　年　　　　　　　　　　　月頃",null,null,null,null,null,null,null,null,null,null,null,null,null,null,null,null,null,null,null,null,null,"）"]
[null,null,null,"保護者氏名",null,null,null,null,"（フリガナ）",null,null,null,null,null,null,null,null,null,null,"被保険者との\n関係＊",null,null,null,"本人・親権者・その他（",null,null,null,null,null,null,"）"]
[]
[null,null,null,"住所",null,null,null,null,"〒  ",null,null,"-"]
[]
[null,null,null,"日中連絡先",null,null,null,null,"電話番号",null,"（",null,null,"-",null,null,"-",null,null,"）","携帯電話の場合、AIG損保からのSMSの送信に同意する。"]
[]
[null,null,"学　校　・　P　T　A　記　入　欄","上記の被保険者は"]
[null,null,null,"（チェック欄A）"]
[null,null,null,null,null,"（1）当校に在籍する児童生徒",null,null,null,null,null,null,null,null,null,null,null,null,null,null,null,null,null," であり、上記事故が"]
[null,null,null,null,null,"（2）当PTA会員（教職員・保護者）またはその同居の親族、PTAが事前に認めた方"]
[null,null,null,"（チェック欄B）"]
[null,null,null,null,null,"（1）学校の管理下以外の時",null,null,null,null,null,null,null,null,null,null,null,null,null,null,null,null,"において"]
[null,null,null,null,null,"（2）下記PTA行事（＊）もしくはそれに参加するための自宅との往復途上"]
[null,null,null,null,"＊（行事名",null,null,null,null,null,null,null,null,null,null,null,null,"開催日",null,20,null,null,"年",null,null,"月",null,null,"日）"]
[null,null,null,"（チェック欄C）"]
[null,null,null,null,null,"発生したことを証明します。",null,null,null,null,null,null,"（＊）実際に事故を確認された場合。",null,null,null,null,null,null,null,"　"]
[null,null,null,null,null,"発生したことの報告を受けました。",null,null,null,null,null,null,"（＊）事故があったことの報告のみ受けられた場合。"]
[null,null,null,"（学校名）",null,{"$f":"IF(V5=\"\",\"\",IF(H3=\"国立\",H5,H3&H5))","v":""},null,null,null,null,null,null,"学校長",null,null,null,null,"（氏名）"]
[null,null,null,null,null,null,null,null,null,null,null,null,"PTA会長"]
[null,null,null,"ご記入日",null,null,null,"年",null,"月",null,"日","担当者名",null,null,null,null,null,null,null,"連絡先電話番号",null,null,null,"（　　　　　-　　　　　-　　　　　）"]
[null,"・・・・・・・・・・・・・・・・・・・・・・・・・・・・・・・・・・・・・・・・・・・・・・・・・・・・＜キリトリ線＞・・・・・・・・・・・・・・・・・・・・・・・・・・・・・・・・・・・・・・・・・・・・・・・・・・・・"]
[null,null,"（保護者・被保険者　控え）"]
[]
[null,null,null,"証券番号24S0146209　（学校契約団体傷害保険）",null,null,null,null,null,null,null,null,null,null,null,null,null,"（ケガをした日）",null,null,null,20,null,"年",null,"月",null,"日"]
[null,null,null,"証券番号24S0146217　（PTA団体傷害保険）",null,null,null,null,null,null,null,null,null,null,null,null,null,"（状況）"]
[]
[null,null,"（お読みください）"]
[null,null,"・AIG損害保険株式会社から電話連絡の際の発信番号は「0120-127-590」となります。"]
[null,null,"・保険金支払い手続きは、学校もしくはPTAから弊社宛てに本書面が到着してからとなります。"]
[null,null,"・なお弊社ではケガに関する保険金請求につきましては、インターネットからの「デジタル保険金請求」でも承っております。ご利用を御希望の場合は本書を学校に提出後、QRコードからアクセスいただき、必要事項を入力してください。"]
[]
[null,null,null,null,null,null,null,null,null,null,null,null,null,null,null,null,null,null,null,null,"デジタル保険金請求はこちら　⇒"]

{"sheet":"個人情報の取扱について","index":2,"n_rows":0,"n_cols":0,"rows_kept":0,"cut":false,"hidden":true,"merged":[]}

{"sheet":"学校一覧","index":3,"n_rows":278,"n_cols":10,"rows_kept":278,"cut":false,"hidden":true,"merged":[]}
["No.","保険会社使用コード","学校名（県立/市立+学校名）","学　校　名","郵便番号","秋田県","県立/市立","住　　　　　　　　所","電話番号","保険会社使用コード"]
[1,"AK001","鹿角市立花輪小学校","花輪小学校","018-5201","秋田県","鹿角市立","鹿角市花輪字中花輪88","0186-23-2007","AK001"]
[2,"AK002","鹿角市立柴平小学校","柴平小学校","018-5201","秋田県","鹿角市立","鹿角市花輪字高市向35","0186-30-2660","AK002"]
[4,"AK004","鹿角市立十和田小学校","十和田小学校","018-5334","秋田県","鹿角市立","鹿角市十和田毛馬内字上新田1-1","0186-35-2042","AK004"]
[5,"AK005","鹿角市立大湯小学校","大湯小学校","018-5421","秋田県","鹿角市立","鹿角市十和田大湯字権現堂15-1","0186-37-2040","AK005"]
[6,"AK006","鹿角市立尾去沢小学校","尾去沢小学校","018-5202","秋田県","鹿角市立","鹿角市尾去沢字上山201-1","0186-23-3201","AK006"]
[7,"AK007","鹿角市立八幡平小学校","八幡平小学校","018-5141","秋田県","鹿角市立","鹿角市八幡平字長嶺川原1","0186-32-2011","AK007"]
[8,"AK008","小坂町立小坂小学校","小坂小学校","017-0201","秋田県","小坂町立","鹿角郡小坂町小坂字赤神4-1","0186-29-2422","AK008"]
[9,"AK009","鹿角市立花輪中学校","花輪中学校","018-5201","秋田県","鹿角市立","鹿角市花輪字陳場125","0186-23-2257","AK009"]
[10,"AK010","鹿角市立十和田中学校","十和田中学校","018-5334","秋田県","鹿角市立","鹿角市十和田毛馬内字上土ヶ久保22-1","0186-35-2164","AK010"]
[11,"AK011","鹿角市立尾去沢中学校","尾去沢中学校","018-5202","秋田県","鹿角市立","鹿角市尾去沢字上山239-1","0186-23-2270","AK011"]
[12,"AK012","鹿角市立八幡平中学校","八幡平中学校","018-5141","秋田県","鹿角市立","鹿角市八幡平字諸田4-1","0186-32-2226","AK012"]
[13,"AK013","小坂町立小坂中学校","小坂中学校","017-0201","秋田県","小坂町立","鹿角郡小坂町小坂字赤神4-1","0186-29-3232","AK013"]
[14,"AK014","大館市立桂城小学校","桂城小学校","017-0887","秋田県","大館市立","大館市水門町1-12","0186-42-2262","AK014"]
[15,"AK015","大館市立城南小学校","城南小学校","017-0821","秋田県","大館市立","大館市字桜町9","0186-42-3025","AK015"]
[16,"AK016","大館市立城西小学校","城西小学校","017-0865","秋田県","大館市立","大館市城西町8-1","0186-42-3238","AK016"]
[17,"AK017","大館市立有浦小学校","有浦小学校","017-0043","秋田県","大館市立","大館市有浦四丁目6-55","0186-42-2834","AK017"]
[18,"AK018","大館市立釈迦内小学校","釈迦内小学校","017-0012","秋田県","大館市立","大館市釈迦内字相染台24","0186-48-2934","AK018"]
[19,"AK019","大館市立長木小学校","長木小学校","017-0031","秋田県","大館市立","大館市上代野字八幡岱45","0186-48-5158","AK019"]
[20,"AK020","大館市立川口小学校","川口小学校","017-0878","秋田県","大館市立","大館市川口字隼人岱108-68","0186-42-9762","AK020"]
[21,"AK021","大館市立上川沿小学校","上川沿小学校","017-0837","秋田県","大館市立","大館市餌釣字前田75","0186-49-6155","AK021"]
[22,"AK022","大館市立成章小学校","成章小学校","018-5601","秋田県","大館市立","大館市十二所字大平190","0186-52-2818","AK022"]
[23,"AK023","大館市立花岡小学校","花岡小学校","017-0005","秋田県","大館市立","大館市花岡町字根井下22","0186-46-1615","AK023"]
[24,"AK024","大館市立矢立小学校","矢立小学校","017-0002","秋田県","大館市立","大館市白沢字白沢1149","0186-46-3012","AK024"]
[25,"AK025","大館市立南小学校","南小学校","018-5756","秋田県","大館市立","大館市下川原字向野6","0186-49-5518","AK025"]
[26,"AK026","大館市立扇田小学校","扇田小学校","018-5701","秋田県","大館市立","大館市比内町扇田字白砂131","0186-55-0043","AK026"]
[27,"AK027","大館市立西館小学校","西館小学校","018-5731","秋田県","大館市立","大館市比内町笹館字前田野77","0186-55-0324","AK027"]
[28,"AK028","大館市立東館小学校","東館小学校","018-5721","秋田県","大館市立","大館市比内町独鈷字独鈷90-1","0186-56-2112","AK028"]
[29,"AK029","大館市立早口小学校","早口小学校","018-3504","秋田県","大館市立","大館市長坂字坂地岱12","0186-54-3033","AK029"]
[30,"AK030","大館市立山瀬小学校","山瀬小学校","018-3501","秋田県","大館市立","大館市岩瀬字上軽石野39-18","0186-54-3036","AK030"]
[31,"AK031","北秋田市立鷹巣小学校","鷹巣小学校","018-3331","秋田県","北秋田市立","北秋田市鷹巣字南中家下37-1","0186-62-2041","AK031"]
[32,"AK032","北秋田市立鷹巣東小学校","鷹巣東小学校","018-3302","秋田県","北秋田市立","北秋田市栄字田沢古川布252","0186-62-1645","AK032"]
[33,"AK033","北秋田市立綴子小学校","綴子小学校","018-3301","秋田県","北秋田市立","北秋田市綴子字街道下59","0186-62-1084","AK033"]
[34,"AK034","北秋田市立清鷹小学校","清鷹小学校","018-3454","秋田県","北秋田市立","北秋田市脇神字塚ノ岱165-1","0186-63-2315","AK034"]
[36,"AK036","北秋田市立米内沢小学校","米内沢小学校","018-4303","秋田県","北秋田市立","北秋田市本城字中島1番地2","0186-72-3029","AK036"]
[37,"AK037","北秋田市立前田小学校","前田小学校","018-4515","秋田県","北秋田市立","北秋田市阿仁前田字下川端103-1","0186-75-2002","AK037"]
[38,"AK038","北秋田市立義務教育学校阿仁学園","義務教育学校阿仁学園","018-4611","秋田県","北秋田市立","北秋田市阿仁水無字上岱13-2","0186-82-2326","AK038"]
[40,"AK040","北秋田市立合川小学校","合川小学校","018-4282","秋田県","北秋田市立","北秋田市李岱字家向26-1","0186-67-6120","AK040"]
[41,"AK041","上小阿仁村立上小阿仁小中学校","上小阿仁小中学校","018-4421","秋田県","上小阿仁村立","北秋田郡上小阿仁村小沢田字上ノ岱97","0186-77-2038","AK041"]
[42,"AK042","大館市立第一中学校","第一中学校","017-0866","秋田県","大館市立","大館市北神明町10-1","0186-42-4177","AK042"]
[43,"AK043","大館市立北陽中学校","北陽中学校","017-0012","秋田県","大館市立","大館市釈迦内字長者森1","0186-48-2935","AK043"]
[44,"AK044","大館市立下川沿中学校","下川沿中学校","017-0878","秋田県","大館市立","大館市川口字隼人岱108-69","0186-42-9761","AK044"]
[45,"AK045","大館市立南中学校","南中学校","018-5751","秋田県","大館市立","大館市二井田字小石台20","0186-49-5516","AK045"]
[46,"AK046","大館市立成章中学校","成章中学校","018-5605","秋田県","大館市立","大館市猿間字中谷地10","0186-52-3022","AK046"]
[47,"AK047","大館市立東中学校","東中学校","017-0043","秋田県","大館市立","大館市有浦5丁目2-8","0186-42-2835","AK047"]
[48,"AK048","大館市立比内中学校","比内中学校","018-5701","秋田県","大館市立","大館市比内町扇田字新館野中岱12","0186-55-1505","AK048"]
[49,"AK049","大館市立田代中学校","田代中学校","018-3501","秋田県","大館市立","大館市岩瀬字下軽石野2-2","0186-54-3042","AK049"]
[50,"AK050","秋田県立大館国際情報学院中学校","大館国際情報学院中学校","017-0052","秋田県","秋田県立","大館市松木字大上25-1","0186-50-6090","AK050"]
[51,"AK051","北秋田市立鷹巣中学校","鷹巣中学校","018-3333","秋田県","北秋田市立","北秋田市坊沢字下上野79","0186-62-1701","AK051"]
[52,"AK052","北秋田市立森吉中学校","森吉中学校","018-4516","秋田県","北秋田市立","北秋田市桂瀬字下柏木岱1","0186-73-2335","AK052"]
[54,"AK054","北秋田市立合川中学校","合川中学校","018-4282","秋田県","北秋田市立","北秋田市李岱字家向1","0186-78-2135","AK054"]
[55,"AK055","能代市立渟城西小学校","渟城西小学校","016-0896","秋田県","能代市立","能代市盤若町2-1","0185-52-2237","AK055"]
[56,"AK056","能代市立渟城南小学校","渟城南小学校","016-0823","秋田県","能代市立","能代市若松町2-24","0185-52-5329","AK056"]
[57,"AK057","能代市立第四小学校","第四小学校","016-0856","秋田県","能代市立","能代市字藤山3","0185-52-3239","AK057"]
[58,"AK058","能代市立第五小学校","第五小学校","016-0121","秋田県","能代市立","能代市鰄渕字中嶋古屋布25","0185-58-2178","AK058"]
[59,"AK059","能代市立向能代小学校","向能代小学校","016-0013","秋田県","能代市立","能代市向能代字上野越25-1","0185-52-6249","AK059"]
[60,"AK060","能代市立浅内小学校","浅内小学校","016-0179","秋田県","能代市立","能代市浅内字上ノ山236","0185-52-4715","AK060"]
[61,"AK061","能代市立二ツ井小学校","二ツ井小学校","018-3118","秋田県","能代市立","能代市二ツ井町字上台25-１","0185-73-2341","AK061"]
[62,"AK062","三種町立琴丘小学校","琴丘小学校","018-2104","秋田県","三種町立","山本郡三種町鹿渡字東二本柳23","0185-87-2014","AK062"]
[64,"AK064","三種町立森岳小学校","森岳小学校","018-2303","秋田県","三種町立","山本郡三種町森岳字東囲177","0185-83-2405","AK064"]
[65,"AK065","三種町立金岡小学校","金岡小学校","018-2304","秋田県","三種町立","山本郡三種町豊岡金田字茂呂沢78-2","0185-83-2210","AK065"]
[66,"AK066","三種町立浜口小学校","浜口小学校","018-2407","秋田県","三種町立","山本郡三種町浜田字福沢57","0185-85-2122","AK066"]
[67,"AK067","三種町立湖北小学校","湖北小学校","018-2401","秋田県","三種町立","山本郡三種町鵜川字上谷地28","0185-85-3120","AK067"]
[68,"AK068","八峰町立八森小学校","八森小学校","018-2634","秋田県","八峰町立","山本郡八峰町字八森字滝の上117","0185-77-2222","AK068"]
[69,"AK069","八峰町立峰浜小学校","峰浜小学校","018-2501","秋田県","八峰町立","山本郡八峰町峰浜水沢字カッチキ台7-1","0185-76-2468","AK069"]
[70,"AK070","藤里町立義務教育学校藤里学園","義務教育学校藤里学園","018-3201","秋田県","藤里町立","山本郡藤里町藤琴字鳥谷場218","0185-79-2026","AK070"]
[71,"AK071","能代市立能代第一中学校","能代第一中学校","016-0896","秋田県","能代市立","能代市盤若町8-11","0185-52-2227","AK071"]
[72,"AK072","能代市立能代第二中学校","能代第二中学校","016-0854","秋田県","能代市立","能代市字豊祥岱1-46","0185-52-5138","AK072"]
[73,"AK073","能代市立能代東中学校","能代東中学校","016-0122","秋田県","能代市立","能代市扇田字東扇田251-1","0185-58-3050","AK073"]
[74,"AK074","能代市立東雲中学校","東雲中学校","016-0013","秋田県","能代市立","能代市向能代字トトメキ106-1","0185-52-5119","AK074"]
[75,"AK075","能代市立能代南中学校","能代南中学校","016-0171","秋田県","能代市立","能代市河戸川字中野241","0185-52-6452","AK075"]
[76,"AK076","能代市立二ツ井中学校","二ツ井中学校","018-3157","秋田県","能代市立","能代市二ツ井町字下野76-2","0185-73-2711","AK076"]
[77,"AK077","三種町立琴丘中学校","琴丘中学校","018-2104","秋田県","三種町立","山本郡三種町鹿渡字盤若台89","0185-87-2514","AK077"]
[78,"AK078","三種町立山本中学校","山本中学校","018-2303","秋田県","三種町立","山本郡三種町森岳字関ノ台18","0185-83-2302","AK078"]
[79,"AK079","三種町立八竜中学校","八竜中学校","018-2401","秋田県","三種町立","山本郡三種町鵜川字西本田10","0185-85-2225","AK079"]
[80,"AK080","八峰町立八峰中学校","八峰中学校","018-2507","秋田県","八峰町立","山本郡八峰町峰浜田中字野田沢40-1","0185-76-3972","AK080"]
[82,"AK082","潟上市立大豊小学校","大豊小学校","018-1401","秋田県","潟上市立","潟上市昭和大久保字高田22","018-877-2068","AK082"]
[83,"AK083","潟上市立飯田川小学校","飯田川小学校","018-1503","秋田県","潟上市立","潟上市飯田川和田妹川字岩崎12-12","018-877-2033","AK083"]
[84,"AK084","潟上市立天王小学校","天王小学校","010-0201","秋田県","潟上市立","潟上市天王字児玉82","018-878-2201","AK084"]
[85,"AK085","潟上市立出戸小学校","出戸小学校","010-0201","秋田県","潟上市立","潟上市天王字北野231-2","018-878-2205","AK085"]
[86,"AK086","潟上市立東湖小学校","東湖小学校","010-0201","秋田県","潟上市立","潟上市天王字宮の後303","018-878-2244","AK086"]
[87,"AK087","潟上市立追分小学校","追分小学校","010-0101","秋田県","潟上市立","潟上市天王字追分西26-7","018-873-3461","AK087"]
[88,"AK088","五城目町立五城目小学校","五城目小学校","018-1723","秋田県","五城目町立","南秋田郡五城目町上樋口字堂社8番地1","018-838-1132","AK088"]
[89,"AK089","八郎潟町立八郎潟小学校","八郎潟小学校","018-1606","秋田県","八郎潟町立","南秋田郡八郎潟町夜叉袋字大嶋田107","018-875-2721","AK089"]
[90,"AK090","大潟村立大潟小学校","大潟小学校","010-0443","秋田県","大潟村立","南秋田郡大潟村字中央5-1","0185-45-2121","AK090"]
[91,"AK091","潟上市立天王中学校","天王中学校","010-0201","秋田県","潟上市立","潟上市天王字宮の後3","018-878-2222","AK091"]
[92,"AK092","潟上市立天王南中学校","天王南中学校","010-0101","秋田県","潟上市立","潟上市天王字上北野4-38","018-873-4300","AK092"]
[93,"AK093","潟上市立羽城中学校","羽城中学校","018-1401","秋田県","潟上市立","潟上市昭和大久保字元木田145","018-877-3211","AK093"]
[94,"AK094","五城目町立五城目第一中学校","五城目第一中学校","018-1711","秋田県","五城目町立","南秋田郡五城目町高崎字広ケ野200","018-852-2051","AK094"]
[95,"AK095","八郎潟町立八郎潟中学校","八郎潟中学校","018-1606","秋田県","八郎潟町立","南秋田郡八郎潟町夜叉袋字大嶋田107","018-875-2053","AK095"]
[96,"AK096","大潟村立大潟中学校","大潟中学校","010-0443","秋田県","大潟村立","南秋田郡大潟村字中央5-1","0185-45-2330","AK096"]
[97,"AK097","井川町立井川義務教育学校","井川義務教育学校","018-1523","秋田県","井川町立","南秋田郡井川町坂本字山崎38","018-855-6012","AK097"]
[98,"AK098","男鹿市立船川第一小学校","船川第一小学校","010-0511","秋田県","男鹿市立","男鹿市船川港船川字漆畑36-1","0185-24-3231","AK098"]
[99,"AK099","男鹿市立脇本第一小学校","脇本第一小学校","010-0342","秋田県","男鹿市立","男鹿市脇本脇本字上野1-1","0185-25-2215","AK099"]
[100,"AK100","男鹿市立船越小学校","船越小学校","010-0341","秋田県","男鹿市立","男鹿市船越字本町7","0185-35-2740","AK100"]
[101,"AK101","男鹿市立北陽小学校","北陽小学校","010-0682","秋田県","男鹿市立","男鹿市北浦北浦表町字表町19","0185-33-2440","AK101"]
[102,"AK102","男鹿市立払戸小学校","払戸小学校","010-0431","秋田県","男鹿市立","男鹿市払戸字渡部97","0185-46-2510","AK102"]
[103,"AK103","男鹿市立美里小学校","美里小学校","010-0421","秋田県","男鹿市立","男鹿市鵜木字松木沢境90","0185-46-2520","AK103"]
[104,"AK104","男鹿市立男鹿南中学校","男鹿南中学校","010-0521","秋田県","男鹿市立","男鹿市船川港南平沢字大畑台30","0185-23-3241","AK104"]
[106,"AK106","男鹿市立男鹿東中学校","男鹿東中学校","010-0341","秋田県","男鹿市立","男鹿市船越字根木169","0185-25-3215","AK106"]
[108,"AK108","秋田市立保戸野小学校","保戸野小学校","010-0911","秋田県","秋田市立","秋田市保戸野すわ町9-60","018-865-0987","AK108"]
[109,"AK109","秋田市立明徳小学校","明徳小学校","010-0876","秋田県","秋田市立","秋田市千秋公園1-13","018-833-4737","AK109"]
[110,"AK110","秋田市立築山小学校","築山小学校","010-0026","秋田県","秋田市立","秋田市楢山古川新町55-1","018-833-4305","AK110"]
[111,"AK111","秋田市立旭北小学校","旭北小学校","010-0951","秋田県","秋田市立","秋田市山王三丁目1-35","018-823-8544","AK111"]
[112,"AK112","秋田市立中通小学校","中通小学校","010-0001","秋田県","秋田市立","秋田市中通五丁目8-22","018-833-4341","AK112"]
[113,"AK113","秋田市立旭南小学校","旭南小学校","010-0925","秋田県","秋田市立","秋田市旭南一丁目15-1","018-824-5281","AK113"]
[114,"AK114","秋田市立牛島小学校","牛島小学校","010-0062","秋田県","秋田市立","秋田市牛島東六丁目6-1","018-832-8296","AK114"]
[115,"AK115","秋田市立川尻小学校","川尻小学校","010-0945","秋田県","秋田市立","秋田市川尻みよし町8-31","018-824-2374","AK115"]
[116,"AK116","秋田市立旭川小学校","旭川小学校","010-0851","秋田県","秋田市立","秋田市手形字才ノ浜63","018-832-2862","AK116"]
[117,"AK117","秋田市立土崎小学校","土崎小学校","011-0946","秋田県","秋田市立","秋田市土崎港中央三丁目1-78","018-845-3271","AK117"]
[118,"AK118","秋田市立港北小学校","港北小学校","011-0941","秋田県","秋田市立","秋田市土崎港北四丁目6-1","018-845-0056","AK118"]
[119,"AK119","秋田市立土崎南小学校","土崎南小学校","011-0942","秋田県","秋田市立","秋田市土崎港東一丁目6-39","018-845-1009","AK119"]
[120,"AK120","秋田市立高清水小学校","高清水小学校","011-0936","秋田県","秋田市立","秋田市将軍野南一丁目2-16","018-845-0831","AK120"]
[121,"AK121","秋田市立広面小学校","広面小学校","010-0041","秋田県","秋田市立","秋田市広面字蟹沢29","018-833-0736","AK121"]
[122,"AK122","秋田市立日新小学校","日新小学校","010-1621","秋田県","秋田市立","秋田市新屋栗田町24-1","018-828-4408","AK122"]
[123,"AK123","秋田市立太平小学校","太平小学校","010-1102","秋田県","秋田市立","秋田市太平目長崎字上目長崎144","018-838-2244","AK123"]
[124,"AK124","秋田市立外旭川小学校","外旭川小学校","010-0802","秋田県","秋田市立","秋田市外旭川字梶ノ目262-2","018-868-3200","AK124"]
[125,"AK125","秋田市立飯島小学校","飯島小学校","011-0913","秋田県","秋田市立","秋田市飯島鼠田二丁目2-1","018-845-0377","AK125"]
[126,"AK126","秋田市立下新城小学校","下新城小学校","010-0145","秋田県","秋田市立","秋田市下新城笠岡字佐戸反10","018-873-3441","AK126"]
[128,"AK128","秋田市立浜田小学校","浜田小学校","010-1654","秋田県","秋田市立","秋田市浜田字自在山47-2","018-828-4027","AK128"]
[129,"AK129","秋田市立豊岩小学校","豊岩小学校","010-1652","秋田県","秋田市立","秋田市豊岩豊巻字内縄尻90","018-828-3236","AK129"]
[130,"AK130","秋田市立仁井田小学校","仁井田小学校","010-1421","秋田県","秋田市立","秋田市仁井田本町四丁目7-1","018-839-2350","AK130"]
[131,"AK131","秋田市立四ツ小屋小学校","四ツ小屋小学校","010-1417","秋田県","秋田市立","秋田市四ツ小屋字街道東256-1","018-839-2050","AK131"]
[132,"AK132","秋田市立上北手小学校","上北手小学校","010-1406","秋田県","秋田市立","秋田市上北手猿田字館ノ下38","018-839-2150","AK132"]
[133,"AK133","秋田市立下北手小学校","下北手小学校","010-0051","秋田県","秋田市立","秋田市下北手松崎字谷崎202-1","018-832-7220","AK133"]
[134,"AK134","秋田市立下浜小学校","下浜小学校","010-1503","秋田県","秋田市立","秋田市下浜羽川字水垂92","018-879-2006","AK134"]
[135,"AK135","秋田市立金足西小学校","金足西小学校","010-0115","秋田県","秋田市立","秋田市金足大清水字大清水台1","018-873-3231","AK135"]
[136,"AK136","秋田市立勝平小学校","勝平小学校","010-1618","秋田県","秋田市立","秋田市新屋松美ガ丘北町14-1","018-823-5660","AK136"]
[137,"AK137","秋田市立八橋小学校","八橋小学校","010-0963","秋田県","秋田市立","秋田市八橋大沼町7-1","018-862-6930","AK137"]
[138,"AK138","秋田市立東小学校","東小学校","010-0003","秋田県","秋田市立","秋田市東通二丁目11-1","018-834-9291","AK138"]
[139,"AK139","秋田市立泉小学校","泉小学校","010-0917","秋田県","秋田市立","秋田市泉中央六丁目2-1","018-864-8799","AK139"]
[140,"AK140","秋田市立大住小学校","大住小学校","010-1423","秋田県","秋田市立","秋田市仁井田字西潟敷33","018-839-0611","AK140"]
[141,"AK141","秋田市立桜小学校","桜小学校","010-0042","秋田県","秋田市立","秋田市桜四丁目12-1","018-833-3375","AK141"]
[142,"AK142","秋田市立飯島南小学校","飯島南小学校","011-0948","秋田県","秋田市立","秋田市飯島西袋一丁目1-2","018-847-1245","AK142"]
[143,"AK143","秋田市立寺内小学校","寺内小学校","011-0902","秋田県","秋田市立","秋田市寺内堂ノ沢二丁目14-1","018-846-8501","AK143"]
[144,"AK144","秋田市立御所野小学校","御所野小学校","010-1414","秋田県","秋田市立","秋田市御所野元町五丁目1-1","018-826-1070","AK144"]
[145,"AK145","秋田市立岩見三内小学校","岩見三内小学校","019-2742","秋田県","秋田市立","秋田市河辺三内字外川原39","018-883-2211","AK145"]
[146,"AK146","秋田市立戸島小学校","戸島小学校","019-2611","秋田県","秋田市立","秋田市河辺戸島字本町123","018-882-2341","AK146"]
[147,"AK147","秋田市立河辺小学校","河辺小学校","019-2601","秋田県","秋田市立","秋田市河辺和田字岡村164","018-882-3323","AK147"]
[148,"AK148","秋田市立雄和小学校","雄和小学校","010-1222","秋田県","秋田市立","秋田市雄和石田字蟹沢40","018-886-2346","AK148"]
[149,"AK149","秋田大学教育文化学部附属小学校","秋田大学教育文化学部附属小学校","010-0904","秋田県",null,"秋田市保戸野原の町13-1","018-862-2593","AK149"]
[150,"AK150","秋田市立秋田東中学校","秋田東中学校","010-0863","秋田県","秋田市立","秋田市手形休下町10-51","018-833-8261","AK150"]
[151,"AK151","秋田市立秋田南中学校","秋田南中学校","010-0014","秋田県","秋田市立","秋田市南通宮田15-1","018-833-8467","AK151"]
[152,"AK152","秋田市立山王中学校","山王中学校","010-0951","秋田県","秋田市立","秋田市山王三丁目1-24","018-823-8361","AK152"]
[153,"AK153","秋田市立土崎中学校","土崎中学校","011-0941","秋田県","秋田市立","秋田市土崎港北一丁目3-1","018-845-0406","AK153"]
[154,"AK154","秋田市立将軍野中学校","将軍野中学校","011-0936","秋田県","秋田市立","秋田市将軍野南一丁目12-1","018-845-1752","AK154"]
[155,"AK155","秋田市立秋田西中学校","秋田西中学校","010-1632","秋田県","秋田市立","秋田市新屋大川町19-75","018-828-4644","AK155"]
[157,"AK157","秋田市立外旭川中学校","外旭川中学校","010-0802","秋田県","秋田市立","秋田市外旭川字梶ノ目50","018-868-3100","AK157"]
[158,"AK158","秋田市立秋田北中学校","秋田北中学校","010-0146","秋田県","秋田市立","秋田市下新城中野字街道端西241-90","018-873-2411","AK158"]
[160,"AK160","秋田市立城南中学校","城南中学校","010-0035","秋田県","秋田市立","秋田市楢山城南町4-1","018-834-2367","AK160"]
[161,"AK161","秋田市立下北手中学校","下北手中学校","010-0051","秋田県","秋田市立","秋田市下北手松崎字走り崎14","018-832-7222","AK161"]
[163,"AK163","秋田市立城東中学校","城東中学校","010-0041","秋田県","秋田市立","秋田市広面字鍋沼17","018-834-9281","AK163"]
[164,"AK164","秋田市立泉中学校","泉中学校","010-0916","秋田県","秋田市立","秋田市泉北二丁目6-1","018-863-8901","AK164"]
[165,"AK165","秋田市立御野場中学校","御野場中学校","010-1423","秋田県","秋田市立","秋田市仁井田字中新田223","018-839-0681","AK165"]
[166,"AK166","秋田市立勝平中学校","勝平中学校","010-1608","秋田県","秋田市立","秋田市新屋北浜町13-1","018-863-7782","AK166"]
[167,"AK167","秋田市立飯島中学校","飯島中学校","011-0911","秋田県","秋田市立","秋田市飯島字田尻堰越48","018-846-3481","AK167"]
[168,"AK168","秋田市立桜中学校","桜中学校","010-0059","秋田県","秋田市立","秋田市桜台一丁目1-1","018-837-5305","AK168"]
[169,"AK169","秋田市立御所野学院中学校","御所野学院中学校","010-1413","秋田県","秋田市立","秋田市御所野地蔵田四丁目1-1","018-889-8330","AK169"]
[170,"AK170","秋田市立岩見三内中学校","岩見三内中学校","019-2742","秋田県","秋田市立","秋田市河辺三内字外川原39","018-883-2221","AK170"]
[171,"AK171","秋田市立河辺中学校","河辺中学校","019-2625","秋田県","秋田市立","秋田市河辺北野田高屋字雷谷地84","018-882-2321","AK171"]
[172,"AK172","秋田市立雄和中学校","雄和中学校","010-1222","秋田県","秋田市立","秋田市雄和石田字蟹沢40","018-886-2345","AK172"]
[173,"AK173","秋田大学教育文化学部附属中学校","秋田大学教育文化学部附属中学校","010-0904","秋田県",null,"秋田市保戸野原の町7-75","018-862-3350","AK173"]
[174,"AK174","秋田県立秋田南高等学校 中等部","秋田南高等学校 中等部","010-1437","秋田県","秋田県立","秋田市仁井田緑町4番1号","018-833-7431","AK174"]
[175,"AK175","由利本荘市立新山小学校","新山小学校","015-0014","秋田県","由利本荘市立","由利本荘市石脇字山ノ神11","0184-22-1420","AK175"]
[176,"AK176","由利本荘市立鶴舞小学校","鶴舞小学校","015-0885","秋田県","由利本荘市立","由利本荘市水林","0184-22-1422","AK176"]
[177,"AK177","由利本荘市立尾崎小学校","尾崎小学校","015-0074","秋田県","由利本荘市立","由利本荘市桜小路1","0184-24-1236","AK177"]
[178,"AK178","由利本荘市立子吉小学校","子吉小学校","015-0041","秋田県","由利本荘市立","由利本荘市薬師堂字堂ノ下93-2","0184-24-2990","AK178"]
[179,"AK179","由利本荘市立小友小学校","小友小学校","015-0063","秋田県","由利本荘市立","由利本荘市館前字後田20","0184-22-4017","AK179"]
[181,"AK181","由利本荘市立矢島小学校","矢島小学校","015-0411","秋田県","由利本荘市立","由利本荘市矢島町城内字八森6","0184-56-2069","AK181"]
[182,"AK182","由利本荘市立岩城小学校","岩城小学校","018-1215","秋田県","由利本荘市立","由利本荘市岩城赤平字新鶴巻4","0184-62-5030","AK182"]
[183,"AK183","由利本荘市立由利小学校","由利小学校","015-0341","秋田県","由利本荘市立","由利本荘市前郷字金神110","0184-32-8171","AK183"]
[184,"AK184","由利本荘市立岩谷小学校","岩谷小学校","018-0711","秋田県","由利本荘市立","由利本荘市岩谷町字十二柳2","0184-65-2220","AK184"]
[185,"AK185","由利本荘市立大内小学校","大内小学校","018-0855","秋田県","由利本荘市立","由利本荘市松本字小及位野78","0184-66-2010","AK185"]
[186,"AK186","由利本荘市立西目小学校","西目小学校","018-0604","秋田県","由利本荘市立","由利本荘市西目町沼田字新屋下37-1","0184-33-2305","AK186"]
[187,"AK187","由利本荘市立鳥海小学校","鳥海小学校","015-0504","秋田県","由利本荘市立","由利本荘市鳥海町上川内字西野14-1","0184-27-6311","AK187"]
[188,"AK188","由利本荘市立東由利小学校","東由利小学校","015-0201","秋田県","由利本荘市立","由利本荘市東由利法内字宮ノ前243","0184-69-2500","AK188"]
[189,"AK189","由利本荘市立本荘北中学校","本荘北中学校","015-0014","秋田県","由利本荘市立","由利本荘市石脇字山ノ神11-304","0184-22-0321","AK189"]
[190,"AK190","由利本荘市立本荘南中学校","本荘南中学校","015-0885","秋田県","由利本荘市立","由利本荘市水林466番地","0184-22-7153","AK190"]
[191,"AK191","由利本荘市立本荘東中学校","本荘東中学校","015-0041","秋田県","由利本荘市立","由利本荘市薬師堂字境橋77","0184-27-2311","AK191"]
[192,"AK192","由利本荘市立矢島中学校","矢島中学校","015-0404","秋田県","由利本荘市立","由利本荘市矢島町七日町字助の渕1-4","0184-56-2062","AK192"]
[193,"AK193","由利本荘市立岩城中学校","岩城中学校","018-1305","秋田県","由利本荘市立","由利本荘市岩城二古字向村20-1","0184-73-2212","AK193"]
[194,"AK194","由利本荘市立由利中学校","由利中学校","015-0341","秋田県","由利本荘市立","由利本荘市前郷字根堀台39","0184-53-2526","AK194"]
[195,"AK195","由利本荘市立大内中学校","大内中学校","018-0722","秋田県","由利本荘市立","由利本荘市中館字堤台６","0184-65-2105","AK195"]
[196,"AK196","由利本荘市立西目中学校","西目中学校","018-0602","秋田県","由利本荘市立","由利本荘市西目町出戸字浜山6-107","0184-33-2304","AK196"]
[197,"AK197","由利本荘市立鳥海中学校","鳥海中学校","015-0504","秋田県","由利本荘市立","由利本荘市鳥海町上川内字西野108","0184-57-2309","AK197"]
[198,"AK198","由利本荘市立東由利中学校","東由利中学校","015-0211","秋田県","由利本荘市立","由利本荘市東由利老方字台山85","0184-69-2410","AK198"]
[199,"AK199","にかほ市立平沢小学校","平沢小学校","018-0402","秋田県","にかほ市立","にかほ市平沢字画書面37-1","0184-35-2406","AK199"]
[200,"AK200","にかほ市立院内小学校","院内小学校","018-0412","秋田県","にかほ市立","にかほ市小国字郷ノ町85","0184-36-2154","AK200"]
[201,"AK201","にかほ市立金浦小学校","金浦小学校","018-0311","秋田県","にかほ市立","にかほ市金浦字背長森39","0184-38-2055","AK201"]
[202,"AK202","にかほ市立象潟小学校","象潟小学校","018-0123","秋田県","にかほ市立","にかほ市象潟町字妙見下77-2","0184-43-2334","AK202"]
[203,"AK203","にかほ市立仁賀保中学校","仁賀保中学校","018-0411","秋田県","にかほ市立","にかほ市院内字ヒシカタ40","0184-36-2121","AK203"]
[204,"AK204","にかほ市立金浦中学校","金浦中学校","018-0311","秋田県","にかほ市立","にかほ市金浦字谷地中30-3","0184-38-2355","AK204"]
[205,"AK205","にかほ市立象潟中学校","象潟中学校","018-0185","秋田県","にかほ市立","にかほ市象潟町字屋敷田108","0184-43-2009","AK205"]
[206,"AK206","大仙市立大曲小学校","大曲小学校","014-0053","秋田県","大仙市立","大仙市大曲花園町4-88","0187-63-1018","AK206"]
[207,"AK207","大仙市立東大曲小学校","東大曲小学校","014-0031","秋田県","大仙市立","大仙市大曲字下高畑81","0187-63-1020","AK207"]
[208,"AK208","大仙市立花館小学校","花館小学校","014-0006","秋田県","大仙市立","大仙市花館中町1-40","0187-63-1022","AK208"]
[209,"AK209","大仙市立内小友小学校","内小友小学校","014-0073","秋田県","大仙市立","大仙市内小友字四ツ村35","0187-68-2345","AK209"]
[210,"AK210","大仙市立大川西根小学校","大川西根小学校","014-0072","秋田県","大仙市立","大仙市大曲西根字小館20","0187-68-3030","AK210"]
[211,"AK211","大仙市立藤木小学校","藤木小学校","014-1412","秋田県","大仙市立","大仙市藤木字街道下67","0187-65-2420","AK211"]
[212,"AK212","大仙市立四ツ屋小学校","四ツ屋小学校","014-0102","秋田県","大仙市立","大仙市四ツ屋字下古道81","0187-66-1513","AK212"]
[213,"AK213","大仙市立角間川小学校","角間川小学校","014-1413","秋田県","大仙市立","大仙市角間川町字大浦町99","0187-65-2201","AK213"]
[214,"AK214","大仙市立神岡小学校","神岡小学校","019-1701","秋田県","大仙市立","大仙市神宮寺字神宮寺52","0187-72-2222","AK214"]
[215,"AK215","大仙市立西仙北小学校","西仙北小学校","019-2112","秋田県","大仙市立","大仙市刈和野上ノ台322","0187-75-1014","AK215"]
[216,"AK216","大仙市立清水小学校","清水小学校","014-0204","秋田県","大仙市立","大仙市清水字上大蔵86","0187-56-3215","AK216"]
[217,"AK217","大仙市立豊成小学校","豊成小学校","014-0711","秋田県","大仙市立","大仙市豊川字下水無47","0187-57-2324","AK217"]
[219,"AK219","大仙市立中仙小学校","中仙小学校","014-0207","秋田県","大仙市立","大仙市長野字六日町215","0187-56-2318","AK219"]
[220,"AK220","大仙市立協和小学校","協和小学校","019-2411","秋田県","大仙市立","大仙市協和境字岸館37","018-881-6868","AK220"]
[221,"AK221","大仙市立太田東小学校","太田東小学校","019-1611","秋田県","大仙市立","大仙市太田町斉内字高野1-93","0187-89-1212","AK221"]
[222,"AK222","大仙市立太田南小学校","太田南小学校","019-1601","秋田県","大仙市立","大仙市太田町横沢字窪関南298","0187-88-2111","AK222"]
[223,"AK223","大仙市立太田北小学校","太田北小学校","019-1605","秋田県","大仙市立","大仙市太田町国見字国見田115","0187-88-2112","AK223"]
[224,"AK224","大仙市立南外小学校","南外小学校","019-1826","秋田県","大仙市立","大仙市南外字田中田17","0187-73-1800","AK224"]
[225,"AK225","大仙市立高梨小学校","高梨小学校","014-0805","秋田県","大仙市立","大仙市高梨字新屋敷1","0187-62-2195","AK225"]
[226,"AK226","大仙市立横堀小学校","横堀小学校","014-0114","秋田県","大仙市立","大仙市福田字穴沢4","0187-69-2111","AK226"]
[227,"AK227","大仙市立大曲中学校","大曲中学校","014-0016","秋田県","大仙市立","大仙市若竹町7-17","0187-63-2222","AK227"]
[228,"AK228","大仙市立大曲西中学校","大曲西中学校","014-0073","秋田県","大仙市立","大仙市内小友字中沢176-1","0187-68-2222","AK228"]
[229,"AK229","大仙市立大曲南中学校","大曲南中学校","014ｰ1412","秋田県","大仙市立","大仙市藤木字上野中70-2","0187-65-2001","AK229"]
[230,"AK230","大仙市立平和中学校","平和中学校","019-1701","秋田県","大仙市立","大仙市神宮寺字荒屋20","0187-72-2211","AK230"]
[231,"AK231","大仙市立西仙北中学校","西仙北中学校","019-2112","秋田県","大仙市立","大仙市刈和野字田中蟻塚12","0187-75-1108","AK231"]
[232,"AK232","大仙市立中仙中学校","中仙中学校","014-0207","秋田県","大仙市立","大仙市長野字新山5-1","0187-56-2328","AK232"]
[234,"AK234","大仙市立協和中学校","協和中学校","019-2411","秋田県","大仙市立","大仙市協和境字岸館90","018-892-3025","AK234"]
[235,"AK235","大仙市立太田中学校","太田中学校","019-1613","秋田県","大仙市立","大仙市太田町太田字新田田尻76","0187-88-2211","AK235"]
[236,"AK236","大仙市立南外中学校","南外中学校","019-1866","秋田県","大仙市立","大仙市南外字赤平台野19-1","0187-73-1231","AK236"]
[237,"AK237","大仙市立仙北中学校","仙北中学校","014-0113","秋田県","大仙市立","大仙市堀見内字西福嶋29","0187-69-2113","AK237"]
[238,"AK238","仙北市立角館小学校","角館小学校","014-0378","秋田県","仙北市立","仙北市角館町西野川原56-1","0187-55-2188","AK238"]
[239,"AK239","仙北市立白岩小学校","白岩小学校","014-0302","秋田県","仙北市立","仙北市角館町白岩新西野162","0187-53-2482","AK239"]
[240,"AK240","仙北市立生保内小学校","生保内小学校","014-1201","秋田県","仙北市立","仙北市田沢湖生保内字武蔵野111","0187-43-0243","AK240"]
[241,"AK241","仙北市立神代小学校","神代小学校","014-1114","秋田県","仙北市立","仙北市田沢湖神代字珍重屋敷48","0187-44-2115","AK241"]
[242,"AK242","仙北市立西明寺小学校","西明寺小学校","014-0515","秋田県","仙北市立","仙北市西木町門屋字六本杉6","0187-47-2233","AK242"]
[243,"AK243","仙北市立桧木内小学校","桧木内小学校","014-0602","秋田県","仙北市立","仙北市西木町桧木内字高屋110","0187-48-2323","AK243"]
[244,"AK244","仙北市立角館中学校","角館中学校","014-0347","秋田県","仙北市立","仙北市角館町小勝田小倉前73","0187-53-2411","AK244"]
[245,"AK245","仙北市立生保内中学校","生保内中学校","014-1201","秋田県","仙北市立","仙北市田沢湖生保内字武蔵野105-1","0187-43-1181","AK245"]
[246,"AK246","仙北市立神代中学校","神代中学校","014-1114","秋田県","仙北市立","仙北市田沢湖神代字野中清水244","0187-44-2110","AK246"]
[247,"AK247","仙北市立西明寺中学校","西明寺中学校","014-0512","秋田県","仙北市立","仙北市西木町上荒井字上橋元280-1","0187-47-2626","AK247"]
[248,"AK248","仙北市立桧木内中学校","桧木内中学校","014-0602","秋田県","仙北市立","仙北市西木町桧木内字高屋2-3","0187-48-2330","AK248"]
[249,"AK249","美郷町立六郷小学校","六郷小学校","019-1404","秋田県","美郷町立","仙北郡美郷町六郷字赤城1","0187-84-1009","AK249"]
[250,"AK250","美郷町立千畑小学校","千畑小学校","019-1541","秋田県","美郷町立","仙北郡美郷町土崎字上野乙1-4","0187-85-2211","AK250"]
[251,"AK251","美郷町立仙南小学校","仙南小学校","019-1234","秋田県","美郷町立","仙北郡美郷町飯詰字轌町26-1","0187-83-2211","AK251"]
[252,"AK252","美郷町立美郷中学校","美郷中学校","019-1404","秋田県","美郷町立","仙北郡美郷町六郷字作山13-3","0187-84-2020","AK252"]
[253,"AK253","横手市立横手南小学校","横手南小学校","013-0015","秋田県","横手市立","横手市羽黒町4-36","0182-32-1051","AK253"]
[254,"AK254","横手市立朝倉小学校","朝倉小学校","013-0008","秋田県","横手市立","横手市睦成字碇185","0182-32-6070","AK254"]
[255,"AK255","横手市立旭小学校","旭小学校","013-0064","秋田県","横手市立","横手市赤坂字城野岡222","0182-36-1020","AK255"]
[256,"AK256","横手市立栄小学校","栄小学校","013-0052","秋田県","横手市立","横手市大屋寺内字長谷下6-3","0182-33-5210","AK256"]
[257,"AK257","横手市立横手北小学校","横手北小学校","013-0071","秋田県","横手市立","横手市八幡字下長田50番地","0182-23-6543","AK257"]
[258,"AK258","横手市立増田小学校","増田小学校","019-0701","秋田県","横手市立","横手市増田町増田字土肥館141","0182-45-2014","AK258"]
[259,"AK259","横手市立浅舞小学校","浅舞小学校","013-0105","秋田県","横手市立","横手市平鹿町浅舞字八幡小路18","0182-24-1140","AK259"]
[260,"AK260","横手市立吉田小学校","吉田小学校","013-0101","秋田県","横手市立","横手市平鹿町上吉田字大道88-3","0182-24-1160","AK260"]
[261,"AK261","横手市立醍醐小学校","醍醐小学校","013-0102","秋田県","横手市立","横手市平鹿町醍醐字大橋7","0182-25-4204","AK261"]
[262,"AK262","横手市立雄物川小学校","雄物川小学校","013-0205","秋田県","横手市立","横手市雄物川町今宿字鳴田35","0182-22-2800","AK262"]
[263,"AK263","横手市立大森小学校","大森小学校","013-0533","秋田県","横手市立","横手市大森町字中田1-4","0182-26-2048","AK263"]
[264,"AK264","横手市立十文字小学校","十文字小学校","019-0508","秋田県","横手市立","横手市十文字町十五野新田字坊主沢5-1","0182-23-7731","AK264"]
[268,"AK268","横手市立山内小学校","山内小学校","019-1108","秋田県","横手市立","横手市山内土渕字菅生37-1","0182-53-2207","AK268"]
[269,"AK269","横手市立大雄小学校","大雄小学校","013-0348","秋田県","横手市立","横手市大雄字田根森50","0182-52-3105","AK269"]
[270,"AK270","横手市立横手北中学校","横手北中学校","013-0075","秋田県","横手市立","横手市静町字鶴田３７番地","0182-38-8600","AK270"]
[271,"AK271","横手市立横手南中学校","横手南中学校","013-0064","秋田県","横手市立","横手市赤坂字郷士館32-1","0182-32-3108","AK271"]
[272,"AK272","秋田県立横手清陵学院中学校","横手清陵学院中学校","013-0041","秋田県","秋田県立","横手市大沢字前田147-1","0182-35-4033","AK272"]
[273,"AK273","横手市立増田中学校","増田中学校","019-0701","秋田県","横手市立","横手市増田町増田字若松27","0182-45-2350","AK273"]
[274,"AK274","横手市立平鹿中学校","平鹿中学校","013-0105","秋田県","横手市立","横手市平鹿町浅舞字一関向3-1","0182-24-0075","AK274"]
[275,"AK275","横手市立十文字中学校","十文字中学校","019-0508","秋田県","横手市立","横手市十文字町十五野新田字梨木境134-1","0182-42-1030","AK275"]
[276,"AK276","横手市立横手明峰中学校","横手明峰中学校","013-0415","秋田県","横手市立","横手市大雄字藤巻西10","0182-38-8500","AK276"]
[277,"AK277","湯沢市立湯沢東小学校","湯沢東小学校","012-0803","秋田県","湯沢市立","湯沢市杉沢新所字八斗場33","0183-72-5125","AK277"]
[278,"AK278","湯沢市立湯沢西小学校","湯沢西小学校","012-0043","秋田県","湯沢市立","湯沢市字万石26","0183-72-5150","AK278"]
[280,"AK280","湯沢市立山田小学校","山田小学校","012-0055","秋田県","湯沢市立","湯沢市山田字土生原52","0183-73-3016","AK280"]
[282,"AK282","湯沢市立稲川小学校","稲川小学校","012-0105","秋田県","湯沢市立","湯沢市川連町字道下86","0183-42-2501","AK282"]
[286,"AK286","湯沢市立雄勝小学校","雄勝小学校","019-0204","秋田県","湯沢市立","湯沢市横堀字板橋5","0183-52-5515","AK286"]
[287,"AK287","湯沢市立皆瀬小学校","皆瀬小学校","012-0183","秋田県","湯沢市立","湯沢市皆瀬字下菅生27","0183-58-4080","AK287"]
[288,"AK288","羽後町立西馬音内小学校","西馬音内小学校","012-1131","秋田県","羽後町立","雄勝郡羽後町西馬音内字祭ノ神19","0183-62-1768","AK288"]
[289,"AK289","羽後町立三輪小学校","三輪小学校","012-1123","秋田県","羽後町立","雄勝郡羽後町貝沢字拾三本塚7","0183-62-1216","AK289"]
[290,"AK290","羽後町立羽後明成小学校","羽後明成小学校","012-1115","秋田県","羽後町立","雄勝郡羽後町足田字大谷地223","0183-62-2235","AK290"]
[291,"AK291","羽後町立高瀬小学校","高瀬小学校","012-1241","秋田県","羽後町立","雄勝郡羽後町田代字畑中45","0183-67-2323","AK291"]
[292,"AK292","東成瀬村立東成瀬小学校","東成瀬小学校","019-0801","秋田県","東成瀬村立","雄勝郡東成瀬村田子内字上野8","0182-47-2313","AK292"]
[293,"AK293","湯沢市立湯沢北中学校","湯沢北中学校","012-0803","秋田県","湯沢市立","湯沢市杉沢新所字八斗場33","0183-72-5127","AK293"]
[294,"AK294","湯沢市立山田中学校","山田中学校","012-0055","秋田県","湯沢市立","湯沢市山田字下館10","0183-73-3017","AK294"]
[295,"AK295","湯沢市立湯沢南中学校","湯沢南中学校","012-0867","秋田県","湯沢市立","湯沢市南台6-1","0183-73-5145","AK295"]
[296,"AK296","湯沢市立稲川中学校","稲川中学校","012-0106","秋田県","湯沢市立","湯沢市三梨町字間明田140","0183-42-2160","AK296"]
[297,"AK297","湯沢市立雄勝中学校","雄勝中学校","019-0204","秋田県","湯沢市立","湯沢市横堀字板橋5","0183-52-2375","AK297"]
[298,"AK298","湯沢市立皆瀬中学校","皆瀬中学校","012-0183","秋田県","湯沢市立","湯沢市皆瀬字下菅生24-1","0183-46-2003","AK298"]
[299,"AK299","羽後町立羽後中学校","羽後中学校","012-1100","秋田県","羽後町立","雄勝郡羽後町字雄勝野1","0183-62-1144","AK299"]
[300,"AK300","東成瀬村立東成瀬中学校","東成瀬中学校","019-0801","秋田県","東成瀬村立","雄勝郡東成瀬村田子内字上林18","0182-47-2155","AK300"]

{"sheet":"【統廃合】変更履歴","index":4,"n_rows":44,"n_cols":14,"rows_kept":44,"cut":false,"hidden":true,"merged":[]}
[null,"＜変更履歴＞"]
[]
[null,"No.","保険会社使用コード","学校名（県立/市立+学校名）","学　校　名","郵便番号","秋田県","県立/市立","住　　　　　　　　所","電話番号","変更内容","新学校名","変更後コード","変更年月"]
[null,2,"AK002","鹿角市立花輪北小学校","花輪北小学校","018-5201","秋田県","鹿角市立","鹿角市花輪字新川端20","0186-23-2603","合併後新設","柴平小学校","AK002","2021-04-01"]
[null,3,"AK003","鹿角市立平元小学校","平元小学校","018-5201","秋田県","鹿角市立","鹿角市花輪字源田平6-1","0186-25-2204","合併後新設","柴平小学校","AK002","2021-04-01"]
[null,34,"AK034","北秋田市立鷹巣中央小学校","鷹巣中央小学校","018-3454","秋田県","北秋田市立","北秋田市脇神字高村岱79-12","0186-62-1558","合併後新設","清鷹小学校","AK034","2021-04-01"]
[null,35,"AK035","北秋田市立鷹巣南小学校","鷹巣南小学校","018-3452","秋田県","北秋田市立","北秋田市七日市字中岱31","0186-66-2053","合併後新設","清鷹小学校","AK034","2021-04-01"]
[null,179,"AK179","由利本荘市立小友小学校","小友小学校","015-0063","秋田県","由利本荘市立","由利本荘市館前字後田20","0184-22-4017","－","小友小学校","AK179","2021-04-01"]
[null,180,"AK180","由利本荘市立石沢小学校","石沢小学校","015-0086","秋田県","由利本荘市立","由利本荘市館字六角167","0184-29-2341","統合により学校名変更","小友小学校","AK179","2021-04-01"]
[null,217,"AK217","大仙市立豊川小学校","豊川小学校","014-0711","秋田県","大仙市立","大仙市豊川字下水無47","0187-57-2324","合併後新設","豊成小学校","AK217","2021-04-01"]
[null,218,"AK218","大仙市立豊岡小学校","豊岡小学校","014-0712","秋田県","大仙市立","大仙市豊岡字中荒井野29","0187-57-2134","合併後新設","豊成小学校","AK217","2021-04-01"]
[null,232,"AK232","大仙市立中仙中学校","中仙中学校","014-0207","秋田県","大仙市立","大仙市長野字新山5-1","0187-56-2328","－","中仙中学校","AK232","2021-04-01"]
[null,233,"AK233","大仙市立豊成中学校","豊成中学校","014-0712","秋田県","大仙市立","大仙市豊岡字杉ケ崎57","0187-57-2040","統合により学校名変更","中仙中学校","AK232","2021-04-01"]
[null,264,"AK264","横手市立十文字第一小学校","十文字第一小学校","019-0523","秋田県","横手市立","横手市十文字町字十文字48","0182-42-1020","合併後新設","十文字小学校","AK264","2021-04-01"]
[null,265,"AK265","横手市立十文字第二小学校","十文字第二小学校","019-0508","秋田県","横手市立","横手市十文字町十五野新田字増田道東19","0182-42-1025","合併後新設","十文字小学校","AK264","2021-04-01"]
[null,266,"AK266","横手市立植田小学校","植田小学校","019-0513","秋田県","横手市立","横手市十文字町植田字忍ノ沢14-4","0182-44-3321","合併後新設","十文字小学校","AK264","2021-04-01"]
[null,267,"AK267","横手市立睦合小学校","睦合小学校","019-0514","秋田県","横手市立","横手市十文字町睦合字宿屋布36","0182-44-3322","合併後新設","十文字小学校","AK264","2021-04-01"]
[null,278,"AK278","湯沢市立湯沢西小学校","湯沢西小学校","012-0855","秋田県","湯沢市立","湯沢市愛宕町三丁目7-10",725150,"統合により学校名変更","湯沢西小学校","AK278","2021-04-01"]
[null,279,"AK279","湯沢市立三関小学校","三関小学校","012-0862","秋田県","湯沢市立","湯沢市関口字堀量68",732926,"統合により学校名変更","湯沢西小学校","AK278","2021-04-01"]
[null,281,"AK281","湯沢市立須川小学校","須川小学校","019-0402","秋田県","湯沢市立","湯沢市相川字須川119-7",792521,"統合により学校名変更","湯沢西小学校","AK278","2021-04-01"]
[null,63,"AK063","三種町立下岩川小学校","下岩川小学校","018-2302","秋田県","三種町立","山本郡三種町下岩川字長面向台50","0185-84-2201","統合により学校名変更","森岳小学校","AK064","2022-04-01"]
[null,64,"AK064","三種町立森岳小学校","森岳小学校","018-2303","秋田県","三種町立","山本郡三種町森岳字東囲151","0185-83-2405","－","森岳小学校","AK064","2022-04-01"]
[null,127,"AK127","秋田市立上新城小学校","上新城小学校","010-0135","秋田県","秋田市立","秋田市上新城五十丁字大村屋敷22","018-870-2201","統合により学校名変更","飯島南小学校","AK142","2022-04-01"]
[null,142,"AK142","秋田市立飯島南小学校","飯島南小学校","011-0948","秋田県","秋田市立","秋田市飯島西袋一丁目1-2","018-847-1245","－","飯島南小学校","AK142","2022-04-01"]
[null,105,"AK105","男鹿市立男鹿北中学校","男鹿北中学校","010-0683","秋田県","男鹿市立","男鹿市北浦北浦字山王林40","0185-33-2020","統合により学校名変更","男鹿東中学校","AK106","2022-04-01"]
[null,106,"AK106","男鹿市立男鹿東中学校","男鹿東中学校","010-0341","秋田県","男鹿市立","男鹿市船越字根木169","0185-25-3215","－","男鹿東中学校","AK106","2022-04-01"]
[null,282,"AK282","湯沢市立稲庭小学校","稲庭小学校","012-0107","秋田県","湯沢市立","湯沢市稲庭町字琵琶倉24",432002,"合併後新設","稲川小学校","AK282","2022-04-01"]
[null,283,"AK283","湯沢市立三梨小学校","三梨小学校","012-0106","秋田県","湯沢市立","湯沢市三梨町字清水小屋244",422503,"合併後新設","稲川小学校","AK282","2022-04-01"]
[null,284,"AK284","湯沢市立川連小学校","川連小学校","012-0105","秋田県","湯沢市立","湯沢市川連町字道下86",422501,"合併後新設","稲川小学校","AK282","2022-04-01"]
[null,285,"AK285","湯沢市立駒形小学校","駒形小学校","012-0104","秋田県","湯沢市立","湯沢市駒形町字三又前田面47-4",422502,"合併後新設","稲川小学校","AK282","2022-04-01"]
[null,38,"AK038","北秋田市立阿仁合小学校","阿仁合小学校","018-4611","秋田県","北秋田市立","北秋田市阿仁水無字上岱13-2","0186-82-2326","合併後新設","義務教育学校阿仁学園","AK038","2023-04-01"]
[null,39,"AK039","北秋田市立大阿仁小学校","大阿仁小学校","018-4735","秋田県","北秋田市立","北秋田市阿仁比立内字様ノ向1","0186-84-2030","合併後新設","義務教育学校阿仁学園","AK038","2023-04-01"]
[null,53,"AK053","北秋田市立阿仁中学校","阿仁中学校","018-4611","秋田県","北秋田市立","北秋田市阿仁水無字畑町東裏194","0186-82-2325","合併後新設","義務教育学校阿仁学園","AK038","2023-04-01"]
[null,70,"AK070","藤里町立藤里小学校","藤里小学校","018-3201","秋田県","藤里町立","山本郡藤里町藤琴字鳥谷場218","0185-79-2026","合併後新設","義務教育学校藤里学園","AK070","2023-04-01"]
[null,81,"AK081","藤里町立藤里中学校","藤里中学校","018-3201","秋田県","藤里町立","山本郡藤里町藤琴字草苅野137","0185-79-2024","合併後新設","義務教育学校藤里学園","AK070","2023-04-01"]
[null,155,"AK155","秋田市立秋田西中学校","秋田西中学校","010-1632","秋田県","秋田市立","秋田市新屋大川町19-75","018-828-4644","－","秋田西中学校","AK155","2023-04-01"]
[null,159,"AK159","秋田市立豊岩中学校","豊岩中学校","010-1652","秋田県","秋田市立","秋田市豊岩豊巻字内縄尻90-2","018-828-3235","統合により学校名変更","秋田西中学校","AK155","2023-04-01"]
[null,162,"AK162","秋田市立下浜中学校","下浜中学校","010-1503","秋田県","秋田市立","秋田市下浜羽川字水垂92","018-879-2011","統合により学校名変更","秋田西中学校","AK155","2023-04-01"]
[null,163,"AK163","秋田市立城東中学校","城東中学校","010-0041","秋田県","秋田市立","秋田市広面字鍋沼17","018-834-9281","－","城東中学校","AK163","2023-04-01"]
[null,156,"AK156","秋田市立太平中学校","太平中学校","010-1103","秋田県","秋田市立","秋田市太平中関字平形46","018-838-2344","統合により学校名変更","城東中学校","AK163","2023-04-01"]
[null,106,"AK106","男鹿市立男鹿東中学校","男鹿東中学校","010-0341","秋田県","男鹿市立","男鹿市船越字根木169","0185-25-3215","－","男鹿東中学校","AK106","2023-04-01"]
[null,107,"AK107","男鹿市立潟西中学校","潟西中学校","010-0411","秋田県","男鹿市立","男鹿市福米沢字八卦1-1","0185-46-2330","統合により学校名変更","男鹿東中学校","AK106","2023-04-01"]
[null,108,"AK037","北秋田市立前田小学校","前田小学校","018-4515","秋田県","北秋田市立",null,null,"統合により学校名変更","米内沢小学校","AK036","2024-04-01"]
[null,109,"AK161","秋田市立下北手中学校","下北手中学校","010-0051","秋田県","秋田市立",null,null,"統合により学校名変更","城東中学校","AK163","2024-04-01"]

{"sheet":"プルダウン用データ","index":5,"n_rows":63,"n_cols":29,"rows_kept":63,"cut":false,"hidden":true,"merged":[]}
[null,null,{"$f":"COUNTA(C$4:C$300)=C2","v":true},{"$f":"COUNTA(D$4:D$300)=D2","v":true},true,true,true,true,true,true,true,true,true,true,true,true,true,true,true,true,true,true,true,true,true,true,true,true]
[null,null,{"$f":"COUNTIFS(学校一覧!$G$2:$G$301,プルダウン用データ!C$3)","v":3},{"$f":"COUNTIFS(学校一覧!$G$2:$G$301,プルダウン用データ!D$3)","v":60},{"$f":"COUNTIFS(学校一覧!$G$2:$G$301,プルダウン用データ!E$3)","v":1},{"$f":"COUNTIFS(学校一覧!$G$2:$G$301,プルダウン用データ!F$3)","v":5},{"$f":"COUNTIFS(学校一覧!$G$2:$G$301,プルダウン用データ!G$3)","v":2},{"$f":"COUNTIFS(学校一覧!$G$2:$G$301,プルダウン用データ!H$3)","v":25},{"$f":"COUNTIFS(学校一覧!$G$2:$G$301,プルダウン用データ!I$3)","v":8},{"$f":"COUNTIFS(学校一覧!$G$2:$G$301,プルダウン用データ!J$3)","v":9},{"$f":"COUNTIFS(学校一覧!$G$2:$G$301,プルダウン用データ!K$3)","v":10},{"$f":"COUNTIFS(学校一覧!$G$2:$G$301,プルダウン用データ!L$3)","v":1},{"$f":"COUNTIFS(学校一覧!$G$2:$G$301,プルダウン用データ!M$3)","v":11},{"$f":"COUNTIFS(学校一覧!$G$2:$G$301,プルダウン用データ!N$3)","v":2},{"$f":"COUNTIFS(学校一覧!$G$2:$G$301,プルダウン用データ!O$3)","v":2},{"$f":"COUNTIFS(学校一覧!$G$2:$G$301,プルダウン用データ!P$3)","v":11},{"$f":"COUNTIFS(学校一覧!$G$2:$G$301,プルダウン用データ!Q$3)","v":30},{"$f":"COUNTIFS(学校一覧!$G$2:$G$301,プルダウン用データ!R$3)","v":7},{"$f":"COUNTIFS(学校一覧!$G$2:$G$301,プルダウン用データ!S$3)","v":13},{"$f":"COUNTIFS(学校一覧!$G$2:$G$301,プルダウン用データ!T$3)","v":2},{"$f":"COUNTIFS(学校一覧!$G$2:$G$301,プルダウン用データ!U$3)","v":3},{"$f":"COUNTIFS(学校一覧!$G$2:$G$301,プルダウン用データ!V$3)","v":2},{"$f":"COUNTIFS(学校一覧!$G$2:$G$301,プルダウン用データ!W$3)","v":1},{"$f":"COUNTIFS(学校一覧!$G$2:$G$301,プルダウン用データ!X$3)","v":4},{"$f":"COUNTIFS(学校一覧!$G$2:$G$301,プルダウン用データ!Y$3)","v":8},{"$f":"COUNTIFS(学校一覧!$G$2:$G$301,プルダウン用データ!Z$3)","v":12},{"$f":"COUNTIFS(学校一覧!$G$2:$G$301,プルダウン用データ!AA$3)","v":23},{"$f":"COUNTIFS(学校一覧!$G$2:$G$301,プルダウン用データ!AB$3)","v":20}]
[null,"--プルダウンでご選択ください--","秋田県立","秋田市立","井川町立","羽後町立","大潟村立","大館市立","男鹿市立","潟上市立","鹿角市立","上小阿仁村立","北秋田市立","小坂町立","五城目町立","仙北市立","大仙市立","にかほ市立","能代市立","八郎潟町立","八峰町立","東成瀬村立","藤里町立","美郷町立","三種町立","湯沢市立","由利本荘市立","横手市立","国立"]
[null,null,"大館国際情報学院中学校","保戸野小学校","井川義務教育学校","西馬音内小学校","大潟小学校","桂城小学校","船川第一小学校","大豊小学校","花輪小学校","上小阿仁小中学校","鷹巣小学校","小坂小学校","五城目小学校","角館小学校","大曲小学校","平沢小学校","渟城西小学校","八郎潟小学校","八森小学校","東成瀬小学校","義務教育学校藤里学園","六郷小学校","琴丘小学校","湯沢東小学校","新山小学校","横手南小学校","秋田大学教育文化学部附属小学校"]
[null,null,"秋田南高等学校 中等部","明徳小学校",null,"三輪小学校","大潟中学校","城南小学校","脇本第一小学校","飯田川小学校","柴平小学校",null,"鷹巣東小学校","小坂中学校","五城目第一中学校","白岩小学校","東大曲小学校","院内小学校","渟城南小学校","八郎潟中学校","峰浜小学校","東成瀬中学校",null,"千畑小学校","森岳小学校","湯沢西小学校","鶴舞小学校","朝倉小学校","秋田大学教育文化学部附属中学校"]
[null,null,"横手清陵学院中学校","築山小学校",null,"羽後明成小学校",null,"城西小学校","船越小学校","天王小学校","十和田小学校",null,"綴子小学校",null,null,"生保内小学校","花館小学校","金浦小学校","第四小学校",null,"八峰中学校",null,null,"仙南小学校","金岡小学校","山田小学校","尾崎小学校","旭小学校"]
[null,null,null,"旭北小学校",null,"高瀬小学校",null,"有浦小学校","北陽小学校","出戸小学校","大湯小学校",null,"清鷹小学校",null,null,"神代小学校","内小友小学校","象潟小学校","第五小学校",null,null,null,null,"美郷中学校","浜口小学校","稲川小学校","子吉小学校","栄小学校"]
[null,null,null,"中通小学校",null,"羽後中学校",null,"釈迦内小学校","払戸小学校","東湖小学校","尾去沢小学校",null,"米内沢小学校",null,null,"西明寺小学校","大川西根小学校","仁賀保中学校","向能代小学校",null,null,null,null,null,"湖北小学校","雄勝小学校","小友小学校","横手北小学校"]
[null,null,null,"旭南小学校",null,null,null,"長木小学校","美里小学校","追分小学校","八幡平小学校",null,"前田小学校",null,null,"桧木内小学校","藤木小学校","金浦中学校","浅内小学校",null,null,null,null,null,"琴丘中学校","皆瀬小学校","矢島小学校","増田小学校"]
[null,null,null,"牛島小学校",null,null,null,"川口小学校","男鹿南中学校","天王中学校","花輪中学校",null,"義務教育学校阿仁学園",null,null,"角館中学校","四ツ屋小学校","象潟中学校","二ツ井小学校",null,null,null,null,null,"山本中学校","湯沢北中学校","岩城小学校","浅舞小学校"]
[null,null,null,"川尻小学校",null,null,null,"上川沿小学校","男鹿東中学校","天王南中学校","十和田中学校",null,"合川小学校",null,null,"生保内中学校","角間川小学校",null,"能代第一中学校",null,null,null,null,null,"八竜中学校","山田中学校","由利小学校","吉田小学校"]
[null,null,null,"旭川小学校",null,null,null,"成章小学校",null,"羽城中学校","尾去沢中学校",null,"森吉中学校",null,null,"神代中学校","神岡小学校",null,"能代第二中学校",null,null,null,null,null,null,"湯沢南中学校","岩谷小学校","醍醐小学校"]
[null,null,null,"土崎小学校",null,null,null,"花岡小学校",null,null,"八幡平中学校",null,"鷹巣中学校",null,null,"西明寺中学校","西仙北小学校",null,"能代東中学校",null,null,null,null,null,null,"稲川中学校","大内小学校","雄物川小学校"]
[null,null,null,"港北小学校",null,null,null,"矢立小学校",null,null,null,null,"合川中学校",null,null,"桧木内中学校","清水小学校",null,"東雲中学校",null,null,null,null,null,null,"雄勝中学校","西目小学校","大森小学校"]
[null,null,null,"土崎南小学校",null,null,null,"南小学校",null,null,null,null,null,null,null,null,"豊成小学校",null,"能代南中学校",null,null,null,null,null,null,"皆瀬中学校","鳥海小学校","十文字小学校"]
[null,null,null,"高清水小学校",null,null,null,"扇田小学校",null,null,null,null,null,null,null,null,"中仙小学校",null,"二ツ井中学校",null,null,null,null,null,null,null,"東由利小学校","山内小学校"]
[null,null,null,"広面小学校",null,null,null,"西館小学校",null,null,null,null,null,null,null,null,"協和小学校",null,null,null,null,null,null,null,null,null,"本荘北中学校","大雄小学校"]
[null,null,null,"日新小学校",null,null,null,"東館小学校",null,null,null,null,null,null,null,null,"太田東小学校",null,null,null,null,null,null,null,null,null,"本荘南中学校","横手北中学校"]
[null,null,null,"太平小学校",null,null,null,"早口小学校",null,null,null,null,null,null,null,null,"太田南小学校",null,null,null,null,null,null,null,null,null,"本荘東中学校","横手南中学校"]
[null,null,null,"外旭川小学校",null,null,null,"山瀬小学校",null,null,null,null,null,null,null,null,"太田北小学校",null,null,null,null,null,null,null,null,null,"矢島中学校","増田中学校"]
[null,null,null,"飯島小学校",null,null,null,"第一中学校",null,null,null,null,null,null,null,null,"南外小学校",null,null,null,null,null,null,null,null,null,"岩城中学校","平鹿中学校"]
[null,null,null,"下新城小学校",null,null,null,"北陽中学校",null,null,null,null,null,null,null,null,"高梨小学校",null,null,null,null,null,null,null,null,null,"由利中学校","十文字中学校"]
[null,null,null,"浜田小学校",null,null,null,"下川沿中学校",null,null,null,null,null,null,null,null,"横堀小学校",null,null,null,null,null,null,null,null,null,"大内中学校","横手明峰中学校"]
[null,null,null,"豊岩小学校",null,null,null,"南中学校",null,null,null,null,null,null,null,null,"大曲中学校",null,null,null,null,null,null,null,null,null,"西目中学校"]
[null,null,null,"仁井田小学校",null,null,null,"成章中学校",null,null,null,null,null,null,null,null,"大曲西中学校",null,null,null,null,null,null,null,null,null,"鳥海中学校"]
[null,null,null,"四ツ小屋小学校",null,null,null,"東中学校",null,null,null,null,null,null,null,null,"大曲南中学校",null,null,null,null,null,null,null,null,null,"東由利中学校"]
[null,null,null,"上北手小学校",null,null,null,"比内中学校",null,null,null,null,null,null,null,null,"平和中学校"]
[null,null,null,"下北手小学校",null,null,null,"田代中学校",null,null,null,null,null,null,null,null,"西仙北中学校"]
[null,null,null,"下浜小学校",null,null,null,null,null,null,null,null,null,null,null,null,"中仙中学校"]
[null,null,null,"金足西小学校",null,null,null,null,null,null,null,null,null,null,null,null,"協和中学校"]
[null,null,null,"勝平小学校",null,null,null,null,null,null,null,null,null,null,null,null,"太田中学校"]
[null,null,null,"八橋小学校",null,null,null,null,null,null,null,null,null,null,null,null,"南外中学校"]
[null,null,null,"東小学校",null,null,null,null,null,null,null,null,null,null,null,null,"仙北中学校"]
[null,null,null,"泉小学校"]
[null,null,null,"大住小学校"]
[null,null,null,"桜小学校"]
[null,null,null,"飯島南小学校"]
[null,null,null,"寺内小学校"]
[null,null,null,"御所野小学校"]
[null,null,null,"岩見三内小学校"]
[null,null,null,"戸島小学校"]
[null,null,null,"河辺小学校"]
[null,null,null,"雄和小学校"]
[null,null,null,"秋田東中学校"]
[null,null,null,"秋田南中学校"]
[null,null,null,"山王中学校"]
[null,null,null,"土崎中学校"]
[null,null,null,"将軍野中学校"]
[null,null,null,"秋田西中学校"]
[null,null,null,"外旭川中学校"]
[null,null,null,"秋田北中学校"]
[null,null,null,"城南中学校"]
[null,null,null,"下北手中学校"]
[null,null,null,"城東中学校"]
[null,null,null,"泉中学校"]
[null,null,null,"御野場中学校"]
[null,null,null,"勝平中学校"]
[null,null,null,"飯島中学校"]
[null,null,null,"桜中学校"]
[null,null,null,"御所野学院中学校"]
[null,null,null,"岩見三内中学校"]
[null,null,null,"河辺中学校"]
[null,null,null,"雄和中学校"]